Body,Body name,Date,Transaction number,Amount,Non recoverable VAT included in amount,Supplier name,Supplier ID,Expense area,Fund type,Expense type,Category description,
http://statistics.data.gov.uk/search?search=E07000114,Thanet District Council,05/01/2017,422557,1008.00,,Albion Fencing&Construction Kent Ltd,ALB005,Operational Services,Revenue,"Repairs,  Alter & Mtce - Build",Building Construction Material,
http://statistics.data.gov.uk/search?search=E07000114,Thanet District Council,05/01/2017,422638,1130.00,,Amber Driver Training,AMB004,Operational Services,Revenue,Training,Human Resources,
http://statistics.data.gov.uk/search?search=E07000114,Thanet District Council,05/01/2017,422639,646.75,,Burgess Marine Ltd,BUR017,Corporate Resources and S151,Balance Sheet,Rechargeable Works,Maritime Services,
http://statistics.data.gov.uk/search?search=E07000114,Thanet District Council,05/01/2017,423033,235117.00,,Burgess Marine Ltd,BUR017,Corporate Resources and S151,Balance Sheet,Plant And Equipment,Maritime Services,
http://statistics.data.gov.uk/search?search=E07000114,Thanet District Council,05/01/2017,422516,2500.00,,Concordia Occupational Health Ltd,CON051,Operational Services,Revenue,"Repairs,  Alter & Mtce - Build",Healthcare,
http://statistics.data.gov.uk/search?search=E07000114,Thanet District Council,05/01/2017,422396,288.83,,Dennis Eagle Ltd,DEN005,Operational Services,Revenue,Direct Transport Costs,Vehicle Management,
http://statistics.data.gov.uk/search?search=E07000114,Thanet District Council,05/01/2017,422397,406.56,,Dennis Eagle Ltd,DEN005,Operational Services,Revenue,Direct Transport Costs,Vehicle Management,
http://statistics.data.gov.uk/search?search=E07000114,Thanet District Council,05/01/2017,422398,731.64,,Dennis Eagle Ltd,DEN005,Operational Services,Revenue,Direct Transport Costs,Vehicle Management,
http://statistics.data.gov.uk/search?search=E07000114,Thanet District Council,05/01/2017,422399,424.43,,Dennis Eagle Ltd,DEN005,Operational Services,Revenue,Direct Transport Costs,Vehicle Management,
http://statistics.data.gov.uk/search?search=E07000114,Thanet District Council,05/01/2017,422402,571.50,,Egbert H Taylor & Company Ltd,TAY005,Corporate Resources and S151,Balance Sheet,Council Dwellings,Environmental Services,
http://statistics.data.gov.uk/search?search=E07000114,Thanet District Council,05/01/2017,422565,262.07,,Electrical Lighting Solutions Ltd,ELE013,Operational Services,Revenue,Fixtures & Fittings,Building Construction Material,
http://statistics.data.gov.uk/search?search=E07000114,Thanet District Council,05/01/2017,422770,1841.63,,Electrical Lighting Solutions Ltd,ELE013,Operational Services,Revenue,"Repairs,  Alter & Mtce - Build",Building Construction Material,
http://statistics.data.gov.uk/search?search=E07000114,Thanet District Council,05/01/2017,422475,660.00,,Envirocure Ltd,ENV011,Corporate Governance,Revenue,"Repairs,  Alter & Mtce - Build",Facilities And Management Serv,
http://statistics.data.gov.uk/search?search=E07000114,Thanet District Council,05/01/2017,422525,240.34,,Esri (Uk) Ltd,ESR001,Corporate Resources and S151,Revenue,Communications & Computing,ICT,
http://statistics.data.gov.uk/search?search=E07000114,Thanet District Council,05/01/2017,422525,480.66,,Esri (Uk) Ltd,ESR001,East Kent Shared Services,Revenue,Communications & Computing,ICT,
http://statistics.data.gov.uk/search?search=E07000114,Thanet District Council,05/01/2017,422624,257.65,,Fox Property Solutions Limited,FOX010,Operational Services,Revenue,Cleaning & Domestic Supplies,Environmental Services,
http://statistics.data.gov.uk/search?search=E07000114,Thanet District Council,05/01/2017,422390,4965.00,,Gerlack & Thorne Ltd,GER001,Corporate Governance,Revenue,"Repairs,  Alter & Mtce - Build",Construction-Repair And Maint,
http://statistics.data.gov.uk/search?search=E07000114,Thanet District Council,05/01/2017,422824,16574.00,,Grant Thornton Uk Llp,GRA048,Corporate Resources and S151,Revenue,Services,Financial Services,
http://statistics.data.gov.uk/search?search=E07000114,Thanet District Council,05/01/2017,422391,900.00,,Gulliver'S Truck Hire Limited,GUL001,Operational Services,Revenue,Cont Hire & Operating Lease,Vehicle Management,
http://statistics.data.gov.uk/search?search=E07000114,Thanet District Council,05/01/2017,422567,1180.35,,Hays Specialist Recruitment Ltd,HAY020,Corporate Resources and S151,Balance Sheet,Council Dwellings,Human Resources,
http://statistics.data.gov.uk/search?search=E07000114,Thanet District Council,05/01/2017,422769,337.42,,Heidelberg Graphic Equipment Ltd,HEI002,Corporate Governance,Revenue,"Equip, Furniture And Materials",Facilities And Management Serv,
http://statistics.data.gov.uk/search?search=E07000114,Thanet District Council,05/01/2017,422382,6845.31,,Hr Go (Kent) Ltd,HRG001,Operational Services,Revenue,Agency Staff,Human Resources,
http://statistics.data.gov.uk/search?search=E07000114,Thanet District Council,05/01/2017,422383,8308.81,,Hr Go (Kent) Ltd,HRG001,Operational Services,Revenue,Agency Staff,Human Resources,
http://statistics.data.gov.uk/search?search=E07000114,Thanet District Council,05/01/2017,422235,1925.00,,J Rospo Building Contractors Ltd,ROS001,Operational Services,Revenue,"Repairs,  Alter & Mtce - Build",Construction-Repair And Maint,
http://statistics.data.gov.uk/search?search=E07000114,Thanet District Council,05/01/2017,422236,950.00,,J Rospo Building Contractors Ltd,ROS001,Operational Services,Revenue,"Repairs,  Alter & Mtce - Build",Construction-Repair And Maint,
http://statistics.data.gov.uk/search?search=E07000114,Thanet District Council,05/01/2017,422802,2523.88,,Kent County Council (Kcs),KCC003,Corporate Governance,Revenue,"Equip, Furniture And Materials",Facilities And Management Serv,
http://statistics.data.gov.uk/search?search=E07000114,Thanet District Council,05/01/2017,422802,162.70,,Kent County Council (Kcs),KCC003,Operational Services,Revenue,"Equip, Furniture And Materials",Facilities And Management Serv,
http://statistics.data.gov.uk/search?search=E07000114,Thanet District Council,05/01/2017,422931,400.00,,Km Media Group Limited,KMM001,Corporate Resources and S151,Revenue,Miscellaneous Expenses,Facilities And Management Serv,
http://statistics.data.gov.uk/search?search=E07000114,Thanet District Council,05/01/2017,422622,683.64,,Lister Wilder Limited,LIS002,Operational Services,Revenue,"Equip, Furniture And Materials",Horticultural,
http://statistics.data.gov.uk/search?search=E07000114,Thanet District Council,05/01/2017,422247,29431.68,,Mears Ltd,MEA003,Corporate Resources and S151,Balance Sheet,Repairs And Mtce Holding A/C,Construction-Repair And Maint,
http://statistics.data.gov.uk/search?search=E07000114,Thanet District Council,05/01/2017,422248,10064.22,,Mears Ltd,MEA003,Corporate Resources and S151,Balance Sheet,Repairs And Mtce Holding A/C,Construction-Repair And Maint,
http://statistics.data.gov.uk/search?search=E07000114,Thanet District Council,05/01/2017,422249,4798.28,,Mears Ltd,MEA003,Corporate Resources and S151,Balance Sheet,Repairs And Mtce Holding A/C,Construction-Repair And Maint,
http://statistics.data.gov.uk/search?search=E07000114,Thanet District Council,05/01/2017,422250,4893.42,,Mears Ltd,MEA003,Corporate Resources and S151,Balance Sheet,Repairs And Mtce Holding A/C,Construction-Repair And Maint,
http://statistics.data.gov.uk/search?search=E07000114,Thanet District Council,05/01/2017,422252,8387.98,,Mears Ltd,MEA003,Corporate Resources and S151,Balance Sheet,Repairs And Mtce Holding A/C,Construction-Repair And Maint,
http://statistics.data.gov.uk/search?search=E07000114,Thanet District Council,05/01/2017,422253,457.32,,Mears Ltd,MEA003,Corporate Resources and S151,Balance Sheet,Repairs And Mtce Holding A/C,Construction-Repair And Maint,
http://statistics.data.gov.uk/search?search=E07000114,Thanet District Council,05/01/2017,422491,223.60,,Mears Ltd,MEA003,Operational Services,Revenue,"Repairs,  Alter & Mtce - Build",Construction-Repair And Maint,
http://statistics.data.gov.uk/search?search=E07000114,Thanet District Council,05/01/2017,422566,541.54,,Mears Ltd,MEA003,Corporate Governance,Revenue,"Repairs,  Alter & Mtce - Build",Construction-Repair And Maint,
http://statistics.data.gov.uk/search?search=E07000114,Thanet District Council,05/01/2017,422780,1576.80,,Mears Ltd,MEA003,Corporate Resources and S151,Balance Sheet,Council Dwellings,Construction-Repair And Maint,
http://statistics.data.gov.uk/search?search=E07000114,Thanet District Council,05/01/2017,422776,4156.40,,Med Clean South Ltd,MED015,Operational Services,Revenue,Cleaning & Domestic Supplies,Cleaning And Janitorial,
http://statistics.data.gov.uk/search?search=E07000114,Thanet District Council,05/01/2017,422481,314.16,,Morgan Jones Ltd,MOR001,Corporate Governance,Revenue,Agency Staff,Human Resources,
http://statistics.data.gov.uk/search?search=E07000114,Thanet District Council,05/01/2017,422488,582.75,,Morgan Jones Ltd,MOR001,Community Services,Revenue,Agency Staff,Human Resources,
http://statistics.data.gov.uk/search?search=E07000114,Thanet District Council,05/01/2017,422489,564.74,,Morgan Jones Ltd,MOR001,Corporate Governance,Revenue,Agency Staff,Human Resources,
http://statistics.data.gov.uk/search?search=E07000114,Thanet District Council,05/01/2017,422898,582.75,,Morgan Jones Ltd,MOR001,Community Services,Revenue,Agency Staff,Human Resources,
http://statistics.data.gov.uk/search?search=E07000114,Thanet District Council,05/01/2017,422474,845.00,,Nagels Uk Ltd,NAG001,Operational Services,Revenue,"Print, Stat And Gen Off Exps",Facilities And Management Serv,
http://statistics.data.gov.uk/search?search=E07000114,Thanet District Council,05/01/2017,422403,319.46,,Neopost Ltd,NEO003,Corporate Governance,Revenue,"Equip, Furniture And Materials",Mail Services,
http://statistics.data.gov.uk/search?search=E07000114,Thanet District Council,05/01/2017,422644,869.85,,Ohuk Limited,OHU001,Operational Services,Revenue,Agency Staff,Human Resources,
http://statistics.data.gov.uk/search?search=E07000114,Thanet District Council,05/01/2017,422395,488.42,,Parkeon Limited,PAR063,Operational Services,Revenue,"Equip, Furniture And Materials",Street And Traffic Management,
http://statistics.data.gov.uk/search?search=E07000114,Thanet District Council,05/01/2017,422477,8445.36,,Potter Raper Partnership,POT006,Corporate Resources and S151,Balance Sheet,Other Land And Buildings-Hra,Consultancy,
http://statistics.data.gov.uk/search?search=E07000114,Thanet District Council,05/01/2017,422478,2770.23,,Potter Raper Partnership,POT006,Corporate Resources and S151,Balance Sheet,Other Land And Buildings-Hra,Consultancy,
http://statistics.data.gov.uk/search?search=E07000114,Thanet District Council,05/01/2017,422472,3000.00,,Project Salus Cic,PRO033,Community Services,Revenue,Grants & Subscriptions,Human Resources,
http://statistics.data.gov.uk/search?search=E07000114,Thanet District Council,05/01/2017,422801,350.00,,R J Broadley Tree Surgery,RJB002,Corporate Resources and S151,Balance Sheet,Repairs And Mtce Holding A/C,Horticultural,
http://statistics.data.gov.uk/search?search=E07000114,Thanet District Council,05/01/2017,422828,30492.00,,Rand Associates Consultancy Ser Ltd,RAN006,Community Services,Revenue,Services,Construction-Repair And Maint,
http://statistics.data.gov.uk/search?search=E07000114,Thanet District Council,05/01/2017,422912,3000.00,,Red Bullet Web Design Limited,RED023,Corporate Resources and S151,Revenue,Services,ICT,
http://statistics.data.gov.uk/search?search=E07000114,Thanet District Council,05/01/2017,422380,280.00,,Straight Manufacturing Limited,STR038,Operational Services,Revenue,"Equip, Furniture And Materials",Environmental Services,
http://statistics.data.gov.uk/search?search=E07000114,Thanet District Council,05/01/2017,422482,221.27,,Tennant Uk Cleaning Solutions Ltd,TEN006,Operational Services,Revenue,Direct Transport Costs,Vehicle Management,
http://statistics.data.gov.uk/search?search=E07000114,Thanet District Council,05/01/2017,422768,225.00,,The Coach Tourism Assoc Limited,COA019,Community Services,Revenue,Expenses,Financial Services,
http://statistics.data.gov.uk/search?search=E07000114,Thanet District Council,05/01/2017,422554,7710.00,,The Duncan & Graham Partnership Ltd,DUN015,Corporate Resources and S151,Balance Sheet,Council Dwellings,Consultancy,
http://statistics.data.gov.uk/search?search=E07000114,Thanet District Council,05/01/2017,422444,3529.17,,The Glenwood Hotel,GLE007,Community Services,Revenue,Services,Housing Management,
http://statistics.data.gov.uk/search?search=E07000114,Thanet District Council,05/01/2017,422445,2583.34,,The Glenwood Hotel,GLE007,Community Services,Revenue,Services,Housing Management,
http://statistics.data.gov.uk/search?search=E07000114,Thanet District Council,05/01/2017,422446,3237.52,,The Glenwood Hotel,GLE007,Community Services,Revenue,Services,Housing Management,
http://statistics.data.gov.uk/search?search=E07000114,Thanet District Council,05/01/2017,422447,1866.66,,The Glenwood Hotel,GLE007,Community Services,Revenue,Services,Housing Management,
http://statistics.data.gov.uk/search?search=E07000114,Thanet District Council,05/01/2017,422379,1516.48,,Tourism Works,TOU007,Community Services,Revenue,Services,Facilities And Management Serv,
http://statistics.data.gov.uk/search?search=E07000114,Thanet District Council,05/01/2017,422452,370.00,,W Brazil & Bros,BRA001,Corporate Resources and S151,Balance Sheet,Repairs And Mtce Holding A/C,Environmental Services,
http://statistics.data.gov.uk/search?search=E07000114,Thanet District Council,05/01/2017,422456,220.00,,W Brazil & Bros,BRA001,Corporate Resources and S151,Balance Sheet,Repairs And Mtce Holding A/C,Environmental Services,
http://statistics.data.gov.uk/search?search=E07000114,Thanet District Council,05/01/2017,422528,3412.80,,Westbrook Construction (Margate) Ltd,WES021,Operational Services,Revenue,"Repairs,  Alter & Mtce - Build",Various Categories,
http://statistics.data.gov.uk/search?search=E07000114,Thanet District Council,10/01/2017,423031,1953.03,,Advanced Business Solutions,COA011,Corporate Resources and S151,Revenue,Communications & Computing,ICT,
http://statistics.data.gov.uk/search?search=E07000114,Thanet District Council,10/01/2017,423032,1261.17,,Advanced Business Solutions,COA011,Corporate Resources and S151,Revenue,Communications & Computing,ICT,
http://statistics.data.gov.uk/search?search=E07000114,Thanet District Council,10/01/2017,423119,484.00,,All Access Ltd,ALL031,Community Services,Revenue,Services,Building Construction Material,
http://statistics.data.gov.uk/search?search=E07000114,Thanet District Council,10/01/2017,422843,225.00,,All Sign Solutions Ltd,ALL002,Operational Services,Revenue,"Equip, Furniture And Materials",Building Construction Material,
http://statistics.data.gov.uk/search?search=E07000114,Thanet District Council,10/01/2017,423199,105567.34,,Axis Europe Plc,AXI001,Corporate Resources and S151,Balance Sheet,Council Dwellings,Construction-Repair And Maint,
http://statistics.data.gov.uk/search?search=E07000114,Thanet District Council,10/01/2017,423327,9940.36,,Bramling Construction Ltd,BRA020,Corporate Resources and S151,Balance Sheet,Capital Exp-Non Council Assets,Grants,
http://statistics.data.gov.uk/search?search=E07000114,Thanet District Council,10/01/2017,423626,2699.60,,Bramling Construction Ltd,BRA020,Corporate Resources and S151,Balance Sheet,Capital Exp-Non Council Assets,Grants,
http://statistics.data.gov.uk/search?search=E07000114,Thanet District Council,10/01/2017,423125,1590.00,,Bridge Security Cctv Ltd,BRI039,Corporate Governance,Revenue,Services,Facilities And Management Serv,
http://statistics.data.gov.uk/search?search=E07000114,Thanet District Council,10/01/2017,422813,4800.00,,Capita Property & Infrastructure Ltd,CAP016,Community Services,Revenue,Services,Consultancy,
http://statistics.data.gov.uk/search?search=E07000114,Thanet District Council,10/01/2017,422846,238.50,,Casement Signs And Traffic,CAS001,Operational Services,Revenue,"Repairs,  Alter & Mtce - Build",Street And Traffic Management,
http://statistics.data.gov.uk/search?search=E07000114,Thanet District Council,10/01/2017,422772,251.25,,Channel Commercials Plc,CCO001,Operational Services,Revenue,Direct Transport Costs,Vehicle Management,
http://statistics.data.gov.uk/search?search=E07000114,Thanet District Council,10/01/2017,423094,650.00,,Cieh,CIE001,Community Services,Revenue,Miscellaneous Expenses,Human Resources,
http://statistics.data.gov.uk/search?search=E07000114,Thanet District Council,10/01/2017,422850,420.00,,Connaught Hotel Dover Limited,CON046,Community Services,Revenue,Services,Housing Management,
http://statistics.data.gov.uk/search?search=E07000114,Thanet District Council,10/01/2017,422851,980.00,,Connaught Hotel Dover Limited,CON046,Community Services,Revenue,Services,Housing Management,
http://statistics.data.gov.uk/search?search=E07000114,Thanet District Council,10/01/2017,423106,119242.50,,Coombs (Canterbury) Ltd,COO033,Corporate Resources and S151,Balance Sheet,Other Land And Buildings-Hra,Construction-Repair And Maint,
http://statistics.data.gov.uk/search?search=E07000114,Thanet District Council,10/01/2017,423620,600.00,,Countrywide Residential Lettings Limited,COU026,Community Services,Revenue,Grants & Subscriptions,Rent Allowances,
http://statistics.data.gov.uk/search?search=E07000114,Thanet District Council,10/01/2017,422800,4130.27,,Dennis Eagle Ltd,DEN005,Operational Services,Revenue,Direct Transport Costs,Vehicle Management,
http://statistics.data.gov.uk/search?search=E07000114,Thanet District Council,10/01/2017,423048,60459.71,,Downfast Demolition & Salvage Ltd,DOW001,Corporate Resources and S151,Balance Sheet,Other Land And Buildings-Hra,Building Construction Material,
http://statistics.data.gov.uk/search?search=E07000114,Thanet District Council,10/01/2017,423331,1875.00,,Dr R K Chhabra,CHH001,Operational Services,Revenue,Services,Cemetery And Crematorium,
http://statistics.data.gov.uk/search?search=E07000114,Thanet District Council,10/01/2017,422871,54.34,,E Saunders Margate Ltd,SAU001,Community Services,Revenue,"Repairs,  Alter & Mtce - Build",Construction-Repair And Maint,
http://statistics.data.gov.uk/search?search=E07000114,Thanet District Council,10/01/2017,422871,570.38,,E Saunders Margate Ltd,SAU001,Corporate Governance,Revenue,"Repairs,  Alter & Mtce - Build",Construction-Repair And Maint,
http://statistics.data.gov.uk/search?search=E07000114,Thanet District Council,10/01/2017,422871,48.30,,E Saunders Margate Ltd,SAU001,Operational Services,Revenue,"Repairs,  Alter & Mtce - Build",Construction-Repair And Maint,
http://statistics.data.gov.uk/search?search=E07000114,Thanet District Council,10/01/2017,422872,108.84,,E Saunders Margate Ltd,SAU001,Community Services,Revenue,"Repairs,  Alter & Mtce - Build",Construction-Repair And Maint,
http://statistics.data.gov.uk/search?search=E07000114,Thanet District Council,10/01/2017,422872,637.18,,E Saunders Margate Ltd,SAU001,Corporate Governance,Revenue,"Repairs,  Alter & Mtce - Build",Construction-Repair And Maint,
http://statistics.data.gov.uk/search?search=E07000114,Thanet District Council,10/01/2017,422872,35.00,,E Saunders Margate Ltd,SAU001,Operational Services,Revenue,"Repairs,  Alter & Mtce - Build",Construction-Repair And Maint,
http://statistics.data.gov.uk/search?search=E07000114,Thanet District Council,10/01/2017,422873,344.83,,E Saunders Margate Ltd,SAU001,Operational Services,Revenue,"Repairs,  Alter & Mtce - Build",Construction-Repair And Maint,
http://statistics.data.gov.uk/search?search=E07000114,Thanet District Council,10/01/2017,423476,7449.82,,E Saunders Margate Ltd,SAU001,Corporate Governance,Revenue,"Repairs,  Alter & Mtce - Build",Construction-Repair And Maint,
http://statistics.data.gov.uk/search?search=E07000114,Thanet District Council,10/01/2017,423146,285.60,,E.On,EON001,Community Services,Revenue,Energy Costs,Utilities,
http://statistics.data.gov.uk/search?search=E07000114,Thanet District Council,10/01/2017,423148,272.41,,E.On,EON001,Community Services,Revenue,Energy Costs,Utilities,
http://statistics.data.gov.uk/search?search=E07000114,Thanet District Council,10/01/2017,423329,179.96,,Electoral Reform Services,ELE010,Corporate Governance,Revenue,Communications & Computing,Facilities And Management Serv,
http://statistics.data.gov.uk/search?search=E07000114,Thanet District Council,10/01/2017,423329,804.38,,Electoral Reform Services,ELE010,Corporate Governance,Revenue,"Print, Stat And Gen Off Exps",Facilities And Management Serv,
http://statistics.data.gov.uk/search?search=E07000114,Thanet District Council,10/01/2017,423326,1570.84,,Family Mosaic Housing,FAM001,Corporate Resources and S151,Balance Sheet,Capital Exp-Non Council Assets,Housing Management,
http://statistics.data.gov.uk/search?search=E07000114,Thanet District Council,10/01/2017,423489,726.34,,Family Mosaic Housing,FAM001,Corporate Resources and S151,Balance Sheet,Capital Exp-Non Council Assets,Housing Management,
http://statistics.data.gov.uk/search?search=E07000114,Thanet District Council,10/01/2017,423491,815.52,,Family Mosaic Housing,FAM001,Corporate Resources and S151,Balance Sheet,Capital Exp-Non Council Assets,Housing Management,
http://statistics.data.gov.uk/search?search=E07000114,Thanet District Council,10/01/2017,423377,519.11,,Farrer Barnes Limited,FAR012,Corporate Resources and S151,Revenue,Agency Staff,Human Resources,
http://statistics.data.gov.uk/search?search=E07000114,Thanet District Council,10/01/2017,423378,543.64,,Farrer Barnes Limited,FAR012,Corporate Resources and S151,Revenue,Agency Staff,Human Resources,
http://statistics.data.gov.uk/search?search=E07000114,Thanet District Council,10/01/2017,423449,8653.21,,Furley Page Solicitors,FUR003,Corporate Resources and S151,Balance Sheet,Capital Exp-Non Council Assets,Grants,
http://statistics.data.gov.uk/search?search=E07000114,Thanet District Council,10/01/2017,423453,7373.02,,Furley Page Solicitors,FUR003,Corporate Resources and S151,Balance Sheet,Capital Exp-Non Council Assets,Grants,
http://statistics.data.gov.uk/search?search=E07000114,Thanet District Council,10/01/2017,423101,20770.00,,Grant Thornton Uk Llp,GRA048,Corporate Resources and S151,Revenue,Services,Financial Services,
http://statistics.data.gov.uk/search?search=E07000114,Thanet District Council,10/01/2017,422901,1218.25,,Hays Specialist Recruitment Ltd,HAY020,Corporate Resources and S151,Balance Sheet,Council Dwellings,Human Resources,
http://statistics.data.gov.uk/search?search=E07000114,Thanet District Council,10/01/2017,423207,3000.00,,Hays Specialist Recruitment Ltd,HAY020,Corporate Resources and S151,Revenue,Services,Human Resources,
http://statistics.data.gov.uk/search?search=E07000114,Thanet District Council,10/01/2017,423226,1202.50,,Hays Specialist Recruitment Ltd,HAY020,Corporate Resources and S151,Balance Sheet,Council Dwellings,Human Resources,
http://statistics.data.gov.uk/search?search=E07000114,Thanet District Council,10/01/2017,423135,650.00,,Hi Way Services Ltd,HIW002,Operational Services,Revenue,"Repairs,  Alter & Mtce - Build",Highway Equipment And Material,
http://statistics.data.gov.uk/search?search=E07000114,Thanet District Council,10/01/2017,422836,219.45,,Hr Go (Kent) Ltd,HRG001,Corporate Governance,Revenue,Agency Staff,Human Resources,
http://statistics.data.gov.uk/search?search=E07000114,Thanet District Council,10/01/2017,422838,422.15,,Hr Go (Kent) Ltd,HRG001,Community Services,Revenue,Agency Staff,Human Resources,
http://statistics.data.gov.uk/search?search=E07000114,Thanet District Council,10/01/2017,423218,434.02,,Hr Go (Kent) Ltd,HRG001,Community Services,Revenue,Agency Staff,Human Resources,
http://statistics.data.gov.uk/search?search=E07000114,Thanet District Council,10/01/2017,423219,219.45,,Hr Go (Kent) Ltd,HRG001,Corporate Governance,Revenue,Agency Staff,Human Resources,
http://statistics.data.gov.uk/search?search=E07000114,Thanet District Council,10/01/2017,423241,219.45,,Hr Go (Kent) Ltd,HRG001,Corporate Governance,Revenue,Agency Staff,Human Resources,
http://statistics.data.gov.uk/search?search=E07000114,Thanet District Council,10/01/2017,422855,560.00,,J Redpath Buchanan & Co Ltd,RED001,Corporate Governance,Revenue,"Repairs,  Alter & Mtce - Build",Building Construction Material,
http://statistics.data.gov.uk/search?search=E07000114,Thanet District Council,10/01/2017,422913,593.33,,J W Fluid Power,JWF001,Corporate Resources and S151,Balance Sheet,Plant And Equipment,Consultancy,
http://statistics.data.gov.uk/search?search=E07000114,Thanet District Council,10/01/2017,423494,663.00,,John Gale,GAL001,Corporate Resources and S151,Balance Sheet,Capital Exp-Non Council Assets,Grants,
http://statistics.data.gov.uk/search?search=E07000114,Thanet District Council,10/01/2017,423485,67964.42,,Kent County Council,KCC002,Community Services,Revenue,Grants & Subscriptions,Various Cats - Public Sector,
http://statistics.data.gov.uk/search?search=E07000114,Thanet District Council,10/01/2017,423433,982.21,,Kent County Council (Kcs),KCC003,Corporate Governance,Revenue,Energy Costs,Facilities And Management Serv,
http://statistics.data.gov.uk/search?search=E07000114,Thanet District Council,10/01/2017,423434,1577.93,,Kent County Council (Kcs),KCC003,Corporate Governance,Revenue,Energy Costs,Facilities And Management Serv,
http://statistics.data.gov.uk/search?search=E07000114,Thanet District Council,10/01/2017,423454,400.00,,Km Media Group Limited,KMM001,Corporate Resources and S151,Revenue,Miscellaneous Expenses,Facilities And Management Serv,
http://statistics.data.gov.uk/search?search=E07000114,Thanet District Council,10/01/2017,423036,928.65,,L W Burt & Son Ltd,BUR027,Corporate Governance,Revenue,"Repairs,  Alter & Mtce - Build",Construction-Repair And Maint,
http://statistics.data.gov.uk/search?search=E07000114,Thanet District Council,10/01/2017,422555,11920.48,,Land Use Consultants Limited,LAN032,Community Services,Revenue,Services,Consultancy,
http://statistics.data.gov.uk/search?search=E07000114,Thanet District Council,10/01/2017,422767,288.50,,Lexisnexis Uk,LEX002,Community Services,Revenue,"Print, Stat And Gen Off Exps",Human Resources,
http://statistics.data.gov.uk/search?search=E07000114,Thanet District Council,10/01/2017,422767,288.50,,Lexisnexis Uk,LEX002,Corporate Governance,Revenue,"Print, Stat And Gen Off Exps",Human Resources,
http://statistics.data.gov.uk/search?search=E07000114,Thanet District Council,10/01/2017,423490,6019.47,,Lifestyle (Kent) Ltd,LIF008,Corporate Resources and S151,Balance Sheet,Capital Exp-Non Council Assets,Grants,
http://statistics.data.gov.uk/search?search=E07000114,Thanet District Council,10/01/2017,423492,6762.66,,Lifestyle (Kent) Ltd,LIF008,Corporate Resources and S151,Balance Sheet,Capital Exp-Non Council Assets,Grants,
http://statistics.data.gov.uk/search?search=E07000114,Thanet District Council,10/01/2017,422933,581.70,,Loomis Uk Ltd,LOO002,Operational Services,Revenue,Services,Financial Services,
http://statistics.data.gov.uk/search?search=E07000114,Thanet District Council,10/01/2017,422865,376.00,,Lyreco Uk Limited,LYR001,Corporate Governance,Revenue,"Print, Stat And Gen Off Exps",Stationery,
http://statistics.data.gov.uk/search?search=E07000114,Thanet District Council,10/01/2017,420236,386.25,,Main Man Supplies Ltd,MAI001,Operational Services,Revenue,"Clothes, Uniforms & Laundry",Clothing,
http://statistics.data.gov.uk/search?search=E07000114,Thanet District Council,10/01/2017,420556,378.95,,Main Man Supplies Ltd,MAI001,Operational Services,Revenue,"Clothes, Uniforms & Laundry",Clothing,
http://statistics.data.gov.uk/search?search=E07000114,Thanet District Council,10/01/2017,420734,392.25,,Main Man Supplies Ltd,MAI001,Operational Services,Revenue,"Clothes, Uniforms & Laundry",Clothing,
http://statistics.data.gov.uk/search?search=E07000114,Thanet District Council,10/01/2017,421410,-300.00,,Main Man Supplies Ltd,MAI001,Operational Services,Revenue,"Clothes, Uniforms & Laundry",Clothing,
http://statistics.data.gov.uk/search?search=E07000114,Thanet District Council,10/01/2017,421413,300.00,,Main Man Supplies Ltd,MAI001,Operational Services,Revenue,"Clothes, Uniforms & Laundry",Clothing,
http://statistics.data.gov.uk/search?search=E07000114,Thanet District Council,10/01/2017,423600,300.00,,Main Man Supplies Ltd,MAI001,Operational Services,Revenue,"Clothes, Uniforms & Laundry",Clothing,
http://statistics.data.gov.uk/search?search=E07000114,Thanet District Council,10/01/2017,422830,2839.15,,Mears Ltd,MEA003,Corporate Governance,Revenue,"Repairs,  Alter & Mtce - Build",Construction-Repair And Maint,
http://statistics.data.gov.uk/search?search=E07000114,Thanet District Council,10/01/2017,422884,1219.64,,Mears Ltd,MEA003,Community Services,Revenue,"Repairs,  Alter & Mtce - Build",Construction-Repair And Maint,
http://statistics.data.gov.uk/search?search=E07000114,Thanet District Council,10/01/2017,422885,301.42,,Mears Ltd,MEA003,Corporate Governance,Revenue,"Repairs,  Alter & Mtce - Build",Construction-Repair And Maint,
http://statistics.data.gov.uk/search?search=E07000114,Thanet District Council,10/01/2017,421665,275.00,,Medway Insulations Limited,MED006,Corporate Resources and S151,Balance Sheet,Repairs And Mtce Holding A/C,Environmental Services,
http://statistics.data.gov.uk/search?search=E07000114,Thanet District Council,10/01/2017,421666,275.00,,Medway Insulations Limited,MED006,Corporate Resources and S151,Balance Sheet,Repairs And Mtce Holding A/C,Environmental Services,
http://statistics.data.gov.uk/search?search=E07000114,Thanet District Council,10/01/2017,422480,510.94,,Morgan Jones Ltd,MOR001,Chief Executive,Revenue,Agency Staff,Human Resources,
http://statistics.data.gov.uk/search?search=E07000114,Thanet District Council,10/01/2017,422778,314.16,,Morgan Jones Ltd,MOR001,Corporate Governance,Revenue,Agency Staff,Human Resources,
http://statistics.data.gov.uk/search?search=E07000114,Thanet District Council,10/01/2017,422896,519.60,,Morgan Jones Ltd,MOR001,Chief Executive,Revenue,Agency Staff,Human Resources,
http://statistics.data.gov.uk/search?search=E07000114,Thanet District Council,10/01/2017,422897,314.16,,Morgan Jones Ltd,MOR001,Corporate Governance,Revenue,Agency Staff,Human Resources,
http://statistics.data.gov.uk/search?search=E07000114,Thanet District Council,10/01/2017,422899,422.62,,Morgan Jones Ltd,MOR001,Corporate Governance,Revenue,Agency Staff,Human Resources,
http://statistics.data.gov.uk/search?search=E07000114,Thanet District Council,10/01/2017,423109,69.17,,Mr Darren Osborne,OSB008,Community Services,Revenue,Cleaning & Domestic Supplies,Cleaning And Janitorial,
http://statistics.data.gov.uk/search?search=E07000114,Thanet District Council,10/01/2017,423109,451.66,,Mr Darren Osborne,OSB008,Corporate Governance,Revenue,Cleaning & Domestic Supplies,Cleaning And Janitorial,
http://statistics.data.gov.uk/search?search=E07000114,Thanet District Council,10/01/2017,423109,40.00,,Mr Darren Osborne,OSB008,Operational Services,Revenue,Cleaning & Domestic Supplies,Cleaning And Janitorial,
http://statistics.data.gov.uk/search?search=E07000114,Thanet District Council,10/01/2017,423079,1949.00,,New Tech Security Ltd,NEW027,Corporate Governance,Revenue,"Equip, Furniture And Materials",Facilities And Management Serv,
http://statistics.data.gov.uk/search?search=E07000114,Thanet District Council,10/01/2017,422856,733.13,,Ovenden Allworks Limited,OVE008,Operational Services,Revenue,"Repairs,  Alter & Mtce - Build",Construction-Repair And Maint,
http://statistics.data.gov.uk/search?search=E07000114,Thanet District Council,10/01/2017,422857,1677.98,,Ovenden Allworks Limited,OVE008,Operational Services,Revenue,"Repairs,  Alter & Mtce - Build",Construction-Repair And Maint,
http://statistics.data.gov.uk/search?search=E07000114,Thanet District Council,10/01/2017,423355,61454.00,,Paramount Ind Property Services Llp,PAR074,Community Services,Revenue,Services,Housing Management,
http://statistics.data.gov.uk/search?search=E07000114,Thanet District Council,10/01/2017,423107,90.00,,Parkeon Limited,PAR063,Community Services,Revenue,"Equip, Furniture And Materials",Street And Traffic Management,
http://statistics.data.gov.uk/search?search=E07000114,Thanet District Council,10/01/2017,423107,1404.00,,Parkeon Limited,PAR063,Operational Services,Revenue,"Equip, Furniture And Materials",Street And Traffic Management,
http://statistics.data.gov.uk/search?search=E07000114,Thanet District Council,10/01/2017,423475,755.33,,Premier Paper Group Limited,PRE035,Corporate Governance,Revenue,"Print, Stat And Gen Off Exps",Stationery,
http://statistics.data.gov.uk/search?search=E07000114,Thanet District Council,10/01/2017,422866,267.34,,Presco Uk Limited,PRE003,Corporate Governance,Revenue,"Print, Stat And Gen Off Exps",Facilities And Management Serv,
http://statistics.data.gov.uk/search?search=E07000114,Thanet District Council,10/01/2017,423621,700.00,,Prospects Assured Uk Ltd,PRO032,Community Services,Revenue,Grants & Subscriptions,Rent Deposits,
http://statistics.data.gov.uk/search?search=E07000114,Thanet District Council,10/01/2017,422904,507.50,,R Cannon,CAN007,Operational Services,Revenue,Services,Maritime Services,
http://statistics.data.gov.uk/search?search=E07000114,Thanet District Council,10/01/2017,422910,520.00,,R Cannon,CAN007,Operational Services,Revenue,"Repairs,  Alter & Mtce - Build",Maritime Services,
http://statistics.data.gov.uk/search?search=E07000114,Thanet District Council,10/01/2017,422911,3360.00,,R Cannon,CAN007,Corporate Resources and S151,Balance Sheet,Plant And Equipment,Maritime Services,
http://statistics.data.gov.uk/search?search=E07000114,Thanet District Council,10/01/2017,423455,15676.99,,REDACTED PERSONAL DATA,N/A,Corporate Resources and S151,Balance Sheet,Capital Exp-Non Council Assets,Grants,
http://statistics.data.gov.uk/search?search=E07000114,Thanet District Council,10/01/2017,423084,1750.00,,Reed Business Information Ltd,REE002,Community Services,Revenue,Advertising Expenses,Facilities And Management Serv,
http://statistics.data.gov.uk/search?search=E07000114,Thanet District Council,10/01/2017,423086,6286.86,,Richard Jackson Ltd,RIC030,Corporate Resources and S151,Balance Sheet,Plant And Equipment,Consultancy,
http://statistics.data.gov.uk/search?search=E07000114,Thanet District Council,10/01/2017,422934,3037.50,,Securitas Security Services (Uk) Ltd,SEC019,Corporate Governance,Revenue,Services,Facilities And Management Serv,
http://statistics.data.gov.uk/search?search=E07000114,Thanet District Council,10/01/2017,423493,6630.00,,South East Building Company Limited,SEB001,Corporate Resources and S151,Balance Sheet,Capital Exp-Non Council Assets,Grants,
http://statistics.data.gov.uk/search?search=E07000114,Thanet District Council,10/01/2017,422417,1513.26,,Southern Electric,SEL007,Corporate Governance,Revenue,Energy Costs,Utilities,
http://statistics.data.gov.uk/search?search=E07000114,Thanet District Council,10/01/2017,422612,2137.26,,Southern Electric,SEL007,Operational Services,Revenue,Energy Costs,Utilities,
http://statistics.data.gov.uk/search?search=E07000114,Thanet District Council,10/01/2017,423144,-1513.26,,Southern Electric,SEL007,Corporate Governance,Revenue,Energy Costs,Utilities,
http://statistics.data.gov.uk/search?search=E07000114,Thanet District Council,10/01/2017,423145,-2137.26,,Southern Electric,SEL007,Operational Services,Revenue,Energy Costs,Utilities,
http://statistics.data.gov.uk/search?search=E07000114,Thanet District Council,10/01/2017,423161,753.23,,Southern Electric,SEL007,Operational Services,Revenue,Energy Costs,Utilities,
http://statistics.data.gov.uk/search?search=E07000114,Thanet District Council,10/01/2017,422918,831.68,,Southern Water,SWA001,Operational Services,Revenue,Water Services,Utilities,
http://statistics.data.gov.uk/search?search=E07000114,Thanet District Council,10/01/2017,422919,277.72,,Southern Water,SWA001,Corporate Governance,Revenue,Water Services,Utilities,
http://statistics.data.gov.uk/search?search=E07000114,Thanet District Council,10/01/2017,422919,563.85,,Southern Water,SWA001,Operational Services,Revenue,Water Services,Utilities,
http://statistics.data.gov.uk/search?search=E07000114,Thanet District Council,10/01/2017,422920,313.50,,Southern Water,SWA001,Operational Services,Revenue,Water Services,Utilities,
http://statistics.data.gov.uk/search?search=E07000114,Thanet District Council,10/01/2017,422922,360.53,,Southern Water,SWA001,Corporate Governance,Revenue,Water Services,Utilities,
http://statistics.data.gov.uk/search?search=E07000114,Thanet District Council,10/01/2017,422923,1260.77,,Southern Water,SWA001,Operational Services,Revenue,Water Services,Utilities,
http://statistics.data.gov.uk/search?search=E07000114,Thanet District Council,10/01/2017,422924,303.62,,Southern Water,SWA001,Operational Services,Revenue,Water Services,Utilities,
http://statistics.data.gov.uk/search?search=E07000114,Thanet District Council,10/01/2017,422925,1036.54,,Southern Water,SWA001,Operational Services,Revenue,Water Services,Utilities,
http://statistics.data.gov.uk/search?search=E07000114,Thanet District Council,10/01/2017,423039,8898.90,,Southern Water,SWA001,Operational Services,Revenue,Water Services,Utilities,
http://statistics.data.gov.uk/search?search=E07000114,Thanet District Council,10/01/2017,423042,1422.37,,Southern Water,SWA001,Operational Services,Revenue,Water Services,Utilities,
http://statistics.data.gov.uk/search?search=E07000114,Thanet District Council,10/01/2017,423043,1721.04,,Southern Water,SWA001,Operational Services,Revenue,Water Services,Utilities,
http://statistics.data.gov.uk/search?search=E07000114,Thanet District Council,10/01/2017,423046,1521.37,,Southern Water,SWA001,Operational Services,Revenue,Water Services,Utilities,
http://statistics.data.gov.uk/search?search=E07000114,Thanet District Council,10/01/2017,423128,1272.81,,Southern Water,SWA001,Corporate Governance,Revenue,Water Services,Utilities,
http://statistics.data.gov.uk/search?search=E07000114,Thanet District Council,10/01/2017,423339,-7286.60,,Southern Water,SWA001,Community Services,Revenue,Water Services,Utilities,
http://statistics.data.gov.uk/search?search=E07000114,Thanet District Council,10/01/2017,423340,7238.67,,Southern Water,SWA001,Community Services,Revenue,Water Services,Utilities,
http://statistics.data.gov.uk/search?search=E07000114,Thanet District Council,10/01/2017,423482,-1272.81,,Southern Water,SWA001,Corporate Governance,Revenue,Water Services,Utilities,
http://statistics.data.gov.uk/search?search=E07000114,Thanet District Council,10/01/2017,423517,653.03,,Southern Water,SWA001,Operational Services,Revenue,Water Services,Utilities,
http://statistics.data.gov.uk/search?search=E07000114,Thanet District Council,10/01/2017,422863,650.00,,Stagecoach Services Limited,STA023,Corporate Resources and S151,Balance Sheet,Staff Bus Permits Holding A/C,Public Transport,
http://statistics.data.gov.uk/search?search=E07000114,Thanet District Council,10/01/2017,423030,3273.00,,Streetmaster (S.Wales) Limited,STR001,Operational Services,Revenue,"Equip, Furniture And Materials",Highway Equipment And Material,
http://statistics.data.gov.uk/search?search=E07000114,Thanet District Council,10/01/2017,423617,9000.00,,The Dreamland Trust,DRE003,Community Services,Revenue,Grants & Subscriptions,Arts And Leisure Services,
http://statistics.data.gov.uk/search?search=E07000114,Thanet District Council,10/01/2017,423074,3616.67,,The Glenwood Hotel,GLE007,Community Services,Revenue,Services,Housing Management,
http://statistics.data.gov.uk/search?search=E07000114,Thanet District Council,10/01/2017,423075,2916.67,,The Glenwood Hotel,GLE007,Community Services,Revenue,Services,Housing Management,
http://statistics.data.gov.uk/search?search=E07000114,Thanet District Council,10/01/2017,423076,3004.19,,The Glenwood Hotel,GLE007,Community Services,Revenue,Services,Housing Management,
http://statistics.data.gov.uk/search?search=E07000114,Thanet District Council,10/01/2017,423077,1704.15,,The Glenwood Hotel,GLE007,Community Services,Revenue,Services,Housing Management,
http://statistics.data.gov.uk/search?search=E07000114,Thanet District Council,10/01/2017,423156,2625.00,,The Glenwood Hotel,GLE007,Community Services,Revenue,Services,Housing Management,
http://statistics.data.gov.uk/search?search=E07000114,Thanet District Council,10/01/2017,423157,3295.86,,The Glenwood Hotel,GLE007,Community Services,Revenue,Services,Housing Management,
http://statistics.data.gov.uk/search?search=E07000114,Thanet District Council,10/01/2017,423158,1895.82,,The Glenwood Hotel,GLE007,Community Services,Revenue,Services,Housing Management,
http://statistics.data.gov.uk/search?search=E07000114,Thanet District Council,10/01/2017,422561,365.75,,Venn Group Limited,VEN004,Corporate Resources and S151,Revenue,Services,Human Resources,
http://statistics.data.gov.uk/search?search=E07000114,Thanet District Council,10/01/2017,422561,548.50,,Venn Group Limited,VEN004,Corporate Governance,Revenue,Services,Human Resources,
http://statistics.data.gov.uk/search?search=E07000114,Thanet District Council,10/01/2017,422562,795.00,,Venn Group Limited,VEN004,Corporate Resources and S151,Revenue,Services,Human Resources,
http://statistics.data.gov.uk/search?search=E07000114,Thanet District Council,10/01/2017,423202,1099.75,,Venn Group Limited,VEN004,Corporate Resources and S151,Revenue,Services,Human Resources,
http://statistics.data.gov.uk/search?search=E07000114,Thanet District Council,10/01/2017,421469,1600.00,,Weld Of Fabrications Limited,WEL010,Operational Services,Revenue,"Repairs,  Alter & Mtce - Build",Building Construction Material,
http://statistics.data.gov.uk/search?search=E07000114,Thanet District Council,10/01/2017,423323,1703.06,,Westbrook Construction (Margate) Ltd,WES021,Operational Services,Revenue,"Repairs,  Alter & Mtce - Build",Various Categories,
http://statistics.data.gov.uk/search?search=E07000114,Thanet District Council,11/01/2017,423236,14260.00,,4global Consulting Limited,4GL001,Community Services,Revenue,Services,Financial Services,
http://statistics.data.gov.uk/search?search=E07000114,Thanet District Council,11/01/2017,423795,967.50,,Adrian Cox Associates Limited,ADR002,Corporate Resources and S151,Balance Sheet,Other Land And Buildings-Hra,Consultancy,
http://statistics.data.gov.uk/search?search=E07000114,Thanet District Council,11/01/2017,422869,225.00,,Alpha Electronics (Southern) Ltd,ALP007,Operational Services,Revenue,"Equip, Furniture And Materials",Environmental Services,
http://statistics.data.gov.uk/search?search=E07000114,Thanet District Council,11/01/2017,423791,725.00,,Aqua Computing Limited,AQU010,East Kent Shared Services,Revenue,Training,Human Resources,
http://statistics.data.gov.uk/search?search=E07000114,Thanet District Council,11/01/2017,423210,256.14,,Castle Automotive & Eng Supp Ltd,CAS024,Operational Services,Revenue,"Equip, Furniture And Materials",Vehicle Management,
http://statistics.data.gov.uk/search?search=E07000114,Thanet District Council,11/01/2017,422847,249.72,,Ccs Media Limited,CCS001,East Kent Shared Services,Revenue,Communications & Computing,ICT,
http://statistics.data.gov.uk/search?search=E07000114,Thanet District Council,11/01/2017,422815,375.00,,Channel Commercials Plc,CCO001,Operational Services,Revenue,Direct Transport Costs,Vehicle Management,
http://statistics.data.gov.uk/search?search=E07000114,Thanet District Council,11/01/2017,422883,307.26,,Channel Commercials Plc,CCO001,Operational Services,Revenue,Direct Transport Costs,Vehicle Management,
http://statistics.data.gov.uk/search?search=E07000114,Thanet District Council,11/01/2017,423451,9924.91,,Cure Developments Limited,CUR005,Corporate Resources and S151,Balance Sheet,Capital Exp-Non Council Assets,Grants,
http://statistics.data.gov.uk/search?search=E07000114,Thanet District Council,11/01/2017,422900,476.00,,Daniels Healthcare Limited,DAN014,Operational Services,Revenue,"Equip, Furniture And Materials",Healthcare,
http://statistics.data.gov.uk/search?search=E07000114,Thanet District Council,11/01/2017,422821,234.48,,Dennis Eagle Ltd,DEN005,Operational Services,Revenue,Direct Transport Costs,Vehicle Management,
http://statistics.data.gov.uk/search?search=E07000114,Thanet District Council,11/01/2017,423204,1268.33,,Dennis Eagle Ltd,DEN005,Operational Services,Revenue,Direct Transport Costs,Vehicle Management,
http://statistics.data.gov.uk/search?search=E07000114,Thanet District Council,11/01/2017,423321,2002.32,,Dha Planning Limited,DHA002,Community Services,Revenue,Services,Consultancy,
http://statistics.data.gov.uk/search?search=E07000114,Thanet District Council,11/01/2017,422826,3025.00,,Dixon Searle Partnership Limited,DIX007,Community Services,Revenue,Services,Consultancy,
http://statistics.data.gov.uk/search?search=E07000114,Thanet District Council,11/01/2017,423083,301.37,,E Saunders Margate Ltd,SAU001,Operational Services,Revenue,"Repairs,  Alter & Mtce - Build",Construction-Repair And Maint,
http://statistics.data.gov.uk/search?search=E07000114,Thanet District Council,11/01/2017,420336,231.35,,Gone Crabbing Limited,GON002,Community Services,Revenue,"Equip, Furniture And Materials",Stationery,
http://statistics.data.gov.uk/search?search=E07000114,Thanet District Council,11/01/2017,423105,660.00,,Gulliver'S Truck Hire Limited,GUL001,Operational Services,Revenue,Cont Hire & Operating Lease,Vehicle Management,
http://statistics.data.gov.uk/search?search=E07000114,Thanet District Council,11/01/2017,423096,899.88,,Haynes Of Maidstone Ltd,HAY008,Operational Services,Revenue,Direct Transport Costs,Vehicle Management,
http://statistics.data.gov.uk/search?search=E07000114,Thanet District Council,11/01/2017,422829,250.00,,Hbinfo Limited,HBI001,East Kent Shared Services,Revenue,Training,Financial Services,
http://statistics.data.gov.uk/search?search=E07000114,Thanet District Council,11/01/2017,422831,1091.50,,Hr Go (Kent) Ltd,HRG001,Operational Services,Revenue,Agency Staff,Human Resources,
http://statistics.data.gov.uk/search?search=E07000114,Thanet District Council,11/01/2017,422832,882.90,,Hr Go (Kent) Ltd,HRG001,Operational Services,Revenue,Agency Staff,Human Resources,
http://statistics.data.gov.uk/search?search=E07000114,Thanet District Council,11/01/2017,422833,1235.78,,Hr Go (Kent) Ltd,HRG001,Operational Services,Revenue,Agency Staff,Human Resources,
http://statistics.data.gov.uk/search?search=E07000114,Thanet District Council,11/01/2017,422834,712.22,,Hr Go (Kent) Ltd,HRG001,Operational Services,Revenue,Agency Staff,Human Resources,
http://statistics.data.gov.uk/search?search=E07000114,Thanet District Council,11/01/2017,422835,955.71,,Hr Go (Kent) Ltd,HRG001,Operational Services,Revenue,Agency Staff,Human Resources,
http://statistics.data.gov.uk/search?search=E07000114,Thanet District Council,11/01/2017,422837,443.63,,Hr Go (Kent) Ltd,HRG001,Operational Services,Revenue,Agency Staff,Human Resources,
http://statistics.data.gov.uk/search?search=E07000114,Thanet District Council,11/01/2017,422839,1091.50,,Hr Go (Kent) Ltd,HRG001,Operational Services,Revenue,Agency Staff,Human Resources,
http://statistics.data.gov.uk/search?search=E07000114,Thanet District Council,11/01/2017,423034,2114.50,,Hr Go (Kent) Ltd,HRG001,Operational Services,Revenue,Agency Staff,Human Resources,
http://statistics.data.gov.uk/search?search=E07000114,Thanet District Council,11/01/2017,423035,9080.68,,Hr Go (Kent) Ltd,HRG001,Operational Services,Revenue,Agency Staff,Human Resources,
http://statistics.data.gov.uk/search?search=E07000114,Thanet District Council,11/01/2017,423139,6997.74,,Hr Go (Kent) Ltd,HRG001,Operational Services,Revenue,Agency Staff,Human Resources,
http://statistics.data.gov.uk/search?search=E07000114,Thanet District Council,11/01/2017,423140,1809.73,,Hr Go (Kent) Ltd,HRG001,Operational Services,Revenue,Agency Staff,Human Resources,
http://statistics.data.gov.uk/search?search=E07000114,Thanet District Council,11/01/2017,423214,1144.29,,Hr Go (Kent) Ltd,HRG001,Operational Services,Revenue,Agency Staff,Human Resources,
http://statistics.data.gov.uk/search?search=E07000114,Thanet District Council,11/01/2017,423215,875.42,,Hr Go (Kent) Ltd,HRG001,Operational Services,Revenue,Agency Staff,Human Resources,
http://statistics.data.gov.uk/search?search=E07000114,Thanet District Council,11/01/2017,423216,1091.50,,Hr Go (Kent) Ltd,HRG001,Operational Services,Revenue,Agency Staff,Human Resources,
http://statistics.data.gov.uk/search?search=E07000114,Thanet District Council,11/01/2017,423217,1204.72,,Hr Go (Kent) Ltd,HRG001,Operational Services,Revenue,Agency Staff,Human Resources,
http://statistics.data.gov.uk/search?search=E07000114,Thanet District Council,11/01/2017,423238,1204.72,,Hr Go (Kent) Ltd,HRG001,Operational Services,Revenue,Agency Staff,Human Resources,
http://statistics.data.gov.uk/search?search=E07000114,Thanet District Council,11/01/2017,423240,883.83,,Hr Go (Kent) Ltd,HRG001,Operational Services,Revenue,Agency Staff,Human Resources,
http://statistics.data.gov.uk/search?search=E07000114,Thanet District Council,11/01/2017,423242,1091.50,,Hr Go (Kent) Ltd,HRG001,Operational Services,Revenue,Agency Staff,Human Resources,
http://statistics.data.gov.uk/search?search=E07000114,Thanet District Council,11/01/2017,423243,1228.82,,Hr Go (Kent) Ltd,HRG001,Operational Services,Revenue,Agency Staff,Human Resources,
http://statistics.data.gov.uk/search?search=E07000114,Thanet District Council,11/01/2017,422817,324.59,,Insight Direct (Uk) Ltd,INS013,East Kent Shared Services,Revenue,Communications & Computing,ICT,
http://statistics.data.gov.uk/search?search=E07000114,Thanet District Council,11/01/2017,423249,8000.00,,Kent County Council,KCC002,Corporate Resources and S151,Balance Sheet,Capital Exp-Non Council Assets,Various Cats - Public Sector,
http://statistics.data.gov.uk/search?search=E07000114,Thanet District Council,11/01/2017,422891,471.52,,Kent County Council (Kcs),KCC003,Corporate Resources and S151,Balance Sheet,Rechargeable Works,Facilities And Management Serv,
http://statistics.data.gov.uk/search?search=E07000114,Thanet District Council,11/01/2017,423097,312.52,,Orbis Protect Limited,ORB009,Corporate Governance,Revenue,Services,Facilities And Management Serv,
http://statistics.data.gov.uk/search?search=E07000114,Thanet District Council,11/01/2017,422909,3180.00,,Oscar Associates (Uk) Limited,OSC001,East Kent Shared Services,Revenue,Agency Staff,ICT,
http://statistics.data.gov.uk/search?search=E07000114,Thanet District Council,11/01/2017,423796,1246.00,,Palmstead Nurseries Ltd,PAL015,Community Services,Revenue,"Equip, Furniture And Materials",Horticultural,
http://statistics.data.gov.uk/search?search=E07000114,Thanet District Council,11/01/2017,422861,498.00,,Sideways Media Limited,SID002,Community Services,Revenue,Miscellaneous Expenses,Facilities And Management Serv,
http://statistics.data.gov.uk/search?search=E07000114,Thanet District Council,11/01/2017,423089,386.64,,Sparshatts Of Kent Ltd,SPA008,Operational Services,Revenue,Direct Transport Costs,Vehicle Management,
http://statistics.data.gov.uk/search?search=E07000114,Thanet District Council,11/01/2017,423092,379.80,,Sparshatts Of Kent Ltd,SPA008,Operational Services,Revenue,Direct Transport Costs,Vehicle Management,
http://statistics.data.gov.uk/search?search=E07000114,Thanet District Council,11/01/2017,423200,712.50,,The Natural Solution Cleaning Co Ltd,NAT030,Operational Services,Revenue,"Repairs,  Alter & Mtce - Build",Cleaning And Janitorial,
http://statistics.data.gov.uk/search?search=E07000114,Thanet District Council,11/01/2017,423225,0.02,,Total Supplies Ltd,TOT009,Corporate Resources and S151,Revenue,"Equip, Furniture And Materials",Cleaning And Janitorial,
http://statistics.data.gov.uk/search?search=E07000114,Thanet District Council,11/01/2017,423225,222.70,,Total Supplies Ltd,TOT009,Corporate Resources and S151,Balance Sheet,Cleaning & Domestic Supplies,Cleaning And Janitorial,
http://statistics.data.gov.uk/search?search=E07000114,Thanet District Council,11/01/2017,423221,8963.97,,Trinity House,TRI002,Operational Services,Revenue,"Equip, Furniture And Materials",Maritime Services,
http://statistics.data.gov.uk/search?search=E07000114,Thanet District Council,13/01/2017,423127,347.00,,All Access Ltd,ALL031,Corporate Resources and S151,Balance Sheet,Rechargeable Works,Building Construction Material,
http://statistics.data.gov.uk/search?search=E07000114,Thanet District Council,13/01/2017,422842,255.00,,All Sign Solutions Ltd,ALL002,Operational Services,Revenue,"Equip, Furniture And Materials",Building Construction Material,
http://statistics.data.gov.uk/search?search=E07000114,Thanet District Council,13/01/2017,422845,389.00,,All Sign Solutions Ltd,ALL002,Operational Services,Revenue,"Equip, Furniture And Materials",Building Construction Material,
http://statistics.data.gov.uk/search?search=E07000114,Thanet District Council,13/01/2017,423114,885.79,,Electoral Reform Services,ELE010,Corporate Governance,Revenue,"Print, Stat And Gen Off Exps",Facilities And Management Serv,
http://statistics.data.gov.uk/search?search=E07000114,Thanet District Council,13/01/2017,422492,1952.08,,Electrical Lighting Solutions Ltd,ELE013,Operational Services,Revenue,"Repairs,  Alter & Mtce - Build",Building Construction Material,
http://statistics.data.gov.uk/search?search=E07000114,Thanet District Council,13/01/2017,422494,431.15,,Electrical Lighting Solutions Ltd,ELE013,Operational Services,Revenue,"Repairs,  Alter & Mtce - Build",Building Construction Material,
http://statistics.data.gov.uk/search?search=E07000114,Thanet District Council,13/01/2017,423085,900.00,,Gulliver'S Truck Hire Limited,GUL001,Operational Services,Revenue,Cont Hire & Operating Lease,Vehicle Management,
http://statistics.data.gov.uk/search?search=E07000114,Thanet District Council,13/01/2017,422892,963.05,,Hilton Cabinet Co Ltd,HIL002,Operational Services,Revenue,"Equip, Furniture And Materials",Furniture And Soft Furnishings,
http://statistics.data.gov.uk/search?search=E07000114,Thanet District Council,13/01/2017,423213,777.70,,Hr Go (Kent) Ltd,HRG001,Operational Services,Revenue,Agency Staff,Human Resources,
http://statistics.data.gov.uk/search?search=E07000114,Thanet District Council,13/01/2017,422927,1650.00,,Km Media Group Limited,KMM001,Operational Services,Revenue,Miscellaneous Expenses,Facilities And Management Serv,
http://statistics.data.gov.uk/search?search=E07000114,Thanet District Council,13/01/2017,422894,2159.43,,Lobster Van Hire Ltd,LOB001,Operational Services,Revenue,Cont Hire & Operating Lease,Vehicle Management,
http://statistics.data.gov.uk/search?search=E07000114,Thanet District Council,13/01/2017,422852,263.86,,Mears Ltd,MEA003,Operational Services,Revenue,"Repairs,  Alter & Mtce - Build",Construction-Repair And Maint,
http://statistics.data.gov.uk/search?search=E07000114,Thanet District Council,13/01/2017,423367,2808.99,,National Express Ltd,NAT010,Community Services,Revenue,Services,Agency Payments,
http://statistics.data.gov.uk/search?search=E07000114,Thanet District Council,13/01/2017,423122,549.78,,Ncc Mechanical Services Limited,NCC006,Corporate Governance,Revenue,"Repairs,  Alter & Mtce - Build",Construction-Repair And Maint,
http://statistics.data.gov.uk/search?search=E07000114,Thanet District Council,13/01/2017,423134,1940.78,,Potter Raper Partnership,POT006,Corporate Resources and S151,Balance Sheet,Council Dwellings,Consultancy,
http://statistics.data.gov.uk/search?search=E07000114,Thanet District Council,13/01/2017,423861,221.65,,Terberg Matec Uk,TER010,Operational Services,Revenue,Direct Transport Costs,Vehicle Management,
http://statistics.data.gov.uk/search?search=E07000114,Thanet District Council,13/01/2017,423080,566.50,,The Pipeline,PIP002,Community Services,Revenue,Services,Various Categories,
http://statistics.data.gov.uk/search?search=E07000114,Thanet District Council,17/01/2017,423376,821.10,,Albion Fencing&Construction Kent Ltd,ALB005,Corporate Resources and S151,Balance Sheet,Other Land And Buildings-Hra,Building Construction Material,
http://statistics.data.gov.uk/search?search=E07000114,Thanet District Council,17/01/2017,423601,3200.00,,Albion Fencing&Construction Kent Ltd,ALB005,Operational Services,Revenue,"Repairs,  Alter & Mtce - Build",Building Construction Material,
http://statistics.data.gov.uk/search?search=E07000114,Thanet District Council,17/01/2017,423607,337.50,,Andy Morris,MOR028,Community Services,Revenue,Services,Arts And Leisure Services,
http://statistics.data.gov.uk/search?search=E07000114,Thanet District Council,17/01/2017,423904,11082.40,,Bramling Construction Ltd,BRA020,Corporate Resources and S151,Balance Sheet,Capital Exp-Non Council Assets,Grants,
http://statistics.data.gov.uk/search?search=E07000114,Thanet District Council,17/01/2017,423907,3550.00,,Bramling Construction Ltd,BRA020,Corporate Resources and S151,Balance Sheet,Capital Exp-Non Council Assets,Grants,
http://statistics.data.gov.uk/search?search=E07000114,Thanet District Council,17/01/2017,423605,400.00,,Canterbury Christ Church University,CAN006,Community Services,Revenue,"Equip, Furniture And Materials",Various Categories,
http://statistics.data.gov.uk/search?search=E07000114,Thanet District Council,17/01/2017,423142,4283.00,,Canterbury City Council,CAN004,Corporate Resources and S151,Balance Sheet,Plant And Equipment,Various Cats - Public Sector,
http://statistics.data.gov.uk/search?search=E07000114,Thanet District Council,17/01/2017,423780,750.00,,Caxtons Commercial Ltd,CAX006,Corporate Governance,Revenue,Services,Consultancy,
http://statistics.data.gov.uk/search?search=E07000114,Thanet District Council,17/01/2017,423615,600.00,,Cipfa Business Ltd,CIP008,Corporate Resources and S151,Revenue,"Print, Stat And Gen Off Exps",Financial Services,
http://statistics.data.gov.uk/search?search=E07000114,Thanet District Council,17/01/2017,423606,39726.00,,Civica Uk Ltd,CIV003,East Kent Shared Services,Revenue,Communications & Computing,ICT,
http://statistics.data.gov.uk/search?search=E07000114,Thanet District Council,17/01/2017,423609,3100.00,,Civica Uk Ltd,CIV003,East Kent Shared Services,Revenue,Communications & Computing,ICT,
http://statistics.data.gov.uk/search?search=E07000114,Thanet District Council,17/01/2017,423461,3519.72,,Commercial Services Trading Ltd,COM048,Operational Services,Revenue,Cont Hire & Operating Lease,Various Cats - Public Sector,
http://statistics.data.gov.uk/search?search=E07000114,Thanet District Council,17/01/2017,424107,1500.00,,Countrywide Residential Lettings Limited,COU026,Community Services,Revenue,Grants & Subscriptions,Rent Allowances,
http://statistics.data.gov.uk/search?search=E07000114,Thanet District Council,17/01/2017,423248,288.83,,Dennis Eagle Ltd,DEN005,Operational Services,Revenue,Direct Transport Costs,Vehicle Management,
http://statistics.data.gov.uk/search?search=E07000114,Thanet District Council,17/01/2017,423581,308.00,,Disclosure And Barring Service,DIS017,Community Services,Revenue,"Equip, Furniture And Materials",Human Resources,
http://statistics.data.gov.uk/search?search=E07000114,Thanet District Council,17/01/2017,423901,2400.00,,Dolphin Lifts Kent,DOL003,Corporate Resources and S151,Balance Sheet,Capital Exp-Non Council Assets,Grants,
http://statistics.data.gov.uk/search?search=E07000114,Thanet District Council,17/01/2017,423902,4500.00,,Dolphin Lifts Kent,DOL003,Corporate Resources and S151,Balance Sheet,Capital Exp-Non Council Assets,Grants,
http://statistics.data.gov.uk/search?search=E07000114,Thanet District Council,17/01/2017,423637,360.00,,Dover Counselling Centre,DOV014,East Kent Shared Services,Revenue,Employee Related Schemes,Healthcare,
http://statistics.data.gov.uk/search?search=E07000114,Thanet District Council,17/01/2017,423374,192.50,,E Saunders Margate Ltd,SAU001,Operational Services,Revenue,"Equip, Furniture And Materials",Construction-Repair And Maint,
http://statistics.data.gov.uk/search?search=E07000114,Thanet District Council,17/01/2017,423374,1000.00,,E Saunders Margate Ltd,SAU001,Operational Services,Revenue,"Repairs,  Alter & Mtce - Build",Construction-Repair And Maint,
http://statistics.data.gov.uk/search?search=E07000114,Thanet District Council,17/01/2017,424110,315.93,,Electrical Lighting Solutions Ltd,ELE013,Operational Services,Revenue,"Repairs,  Alter & Mtce - Build",Building Construction Material,
http://statistics.data.gov.uk/search?search=E07000114,Thanet District Council,17/01/2017,423457,275.00,,Epos Group (Kent),EPO001,Community Services,Revenue,Communications & Computing,Stationery,
http://statistics.data.gov.uk/search?search=E07000114,Thanet District Council,17/01/2017,423899,7026.34,,Evermech Services Ltd,EVE011,Corporate Resources and S151,Balance Sheet,Capital Exp-Non Council Assets,Grants,
http://statistics.data.gov.uk/search?search=E07000114,Thanet District Council,17/01/2017,423894,1011.66,,Family Mosaic Housing,FAM001,Corporate Resources and S151,Balance Sheet,Capital Exp-Non Council Assets,Housing Management,
http://statistics.data.gov.uk/search?search=E07000114,Thanet District Council,17/01/2017,423896,1291.70,,Family Mosaic Housing,FAM001,Corporate Resources and S151,Balance Sheet,Capital Exp-Non Council Assets,Housing Management,
http://statistics.data.gov.uk/search?search=E07000114,Thanet District Council,17/01/2017,423898,3000.00,,Family Mosaic Housing,FAM001,Corporate Resources and S151,Balance Sheet,Capital Exp-Non Council Assets,Housing Management,
http://statistics.data.gov.uk/search?search=E07000114,Thanet District Council,17/01/2017,423900,847.16,,Family Mosaic Housing,FAM001,Corporate Resources and S151,Balance Sheet,Capital Exp-Non Council Assets,Housing Management,
http://statistics.data.gov.uk/search?search=E07000114,Thanet District Council,17/01/2017,423906,792.18,,Family Mosaic Housing,FAM001,Corporate Resources and S151,Balance Sheet,Capital Exp-Non Council Assets,Housing Management,
http://statistics.data.gov.uk/search?search=E07000114,Thanet District Council,17/01/2017,424106,977.21,,Family Mosaic Housing,FAM001,Corporate Resources and S151,Balance Sheet,Capital Exp-Non Council Assets,Housing Management,
http://statistics.data.gov.uk/search?search=E07000114,Thanet District Council,17/01/2017,423375,412.60,,Frandham Boarding Kennels,FRA010,Operational Services,Revenue,Services,Environmental Services,
http://statistics.data.gov.uk/search?search=E07000114,Thanet District Council,17/01/2017,423757,14201.73,,G & W Gardner Building Cont Ltd,GAR001,Corporate Resources and S151,Balance Sheet,Other Land And Buildings-Hra,Construction-Repair And Maint,
http://statistics.data.gov.uk/search?search=E07000114,Thanet District Council,17/01/2017,423368,688.00,,Gas Contract Services Ltd,GAS004,Corporate Resources and S151,Balance Sheet,Repairs And Mtce Holding A/C,Construction-Repair And Maint,
http://statistics.data.gov.uk/search?search=E07000114,Thanet District Council,17/01/2017,423229,660.00,,Gulliver'S Truck Hire Limited,GUL001,Operational Services,Revenue,Cont Hire & Operating Lease,Vehicle Management,
http://statistics.data.gov.uk/search?search=E07000114,Thanet District Council,17/01/2017,423903,8543.65,,Hfd Construction,HFD001,Corporate Resources and S151,Balance Sheet,Capital Exp-Non Council Assets,Grants,
http://statistics.data.gov.uk/search?search=E07000114,Thanet District Council,17/01/2017,423212,1091.50,,Hr Go (Kent) Ltd,HRG001,Operational Services,Revenue,Agency Staff,Human Resources,
http://statistics.data.gov.uk/search?search=E07000114,Thanet District Council,17/01/2017,423237,1091.50,,Hr Go (Kent) Ltd,HRG001,Operational Services,Revenue,Agency Staff,Human Resources,
http://statistics.data.gov.uk/search?search=E07000114,Thanet District Council,17/01/2017,423239,917.45,,Hr Go (Kent) Ltd,HRG001,Operational Services,Revenue,Agency Staff,Human Resources,
http://statistics.data.gov.uk/search?search=E07000114,Thanet District Council,17/01/2017,423437,228.96,,Hr Go (Kent) Ltd,HRG001,Community Services,Revenue,Agency Staff,Human Resources,
http://statistics.data.gov.uk/search?search=E07000114,Thanet District Council,17/01/2017,423895,6297.17,,Hubbard & Houghton Construction Ltd,HUB003,Corporate Resources and S151,Balance Sheet,Capital Exp-Non Council Assets,Grants,
http://statistics.data.gov.uk/search?search=E07000114,Thanet District Council,17/01/2017,423770,500.00,,Idox Software  Limited,IDO001,Corporate Resources and S151,Balance Sheet,Plant And Equipment,ICT,
http://statistics.data.gov.uk/search?search=E07000114,Thanet District Council,17/01/2017,423373,425.00,,Ifzw Maintenance Ltd,IFZ001,Operational Services,Revenue,"Equip, Furniture And Materials",Cemetery And Crematorium,
http://statistics.data.gov.uk/search?search=E07000114,Thanet District Council,17/01/2017,423616,2265.48,,Iken Business Ltd,IKE001,Corporate Governance,Revenue,Communications & Computing,ICT,
http://statistics.data.gov.uk/search?search=E07000114,Thanet District Council,17/01/2017,423406,3100.00,,Institute Of Cemetery & Crem Mang,INS015,Operational Services,Revenue,Training,Cemetery And Crematorium,
http://statistics.data.gov.uk/search?search=E07000114,Thanet District Council,17/01/2017,423758,1533.00,,J Redpath Buchanan & Co Ltd,RED001,Corporate Governance,Revenue,"Repairs,  Alter & Mtce - Build",Building Construction Material,
http://statistics.data.gov.uk/search?search=E07000114,Thanet District Council,17/01/2017,423333,1690.00,,Keith Tait,TAI001,Operational Services,Revenue,Grounds Mtce Costs,Horticultural,
http://statistics.data.gov.uk/search?search=E07000114,Thanet District Council,17/01/2017,423334,1595.00,,Keith Tait,TAI001,Operational Services,Revenue,Grounds Mtce Costs,Horticultural,
http://statistics.data.gov.uk/search?search=E07000114,Thanet District Council,17/01/2017,423250,4746.00,,Kent County Council,KCC002,Community Services,Revenue,Services,Various Cats - Public Sector,
http://statistics.data.gov.uk/search?search=E07000114,Thanet District Council,17/01/2017,423588,1331.46,,Kent County Council (Kcs),KCC003,Operational Services,Revenue,Energy Costs,Facilities And Management Serv,
http://statistics.data.gov.uk/search?search=E07000114,Thanet District Council,17/01/2017,423589,-862.31,,Kent County Council (Kcs),KCC003,Operational Services,Revenue,Energy Costs,Facilities And Management Serv,
http://statistics.data.gov.uk/search?search=E07000114,Thanet District Council,17/01/2017,423590,-1626.98,,Kent County Council (Kcs),KCC003,Operational Services,Revenue,Energy Costs,Facilities And Management Serv,
http://statistics.data.gov.uk/search?search=E07000114,Thanet District Council,17/01/2017,423591,-2459.08,,Kent County Council (Kcs),KCC003,Operational Services,Revenue,Energy Costs,Facilities And Management Serv,
http://statistics.data.gov.uk/search?search=E07000114,Thanet District Council,17/01/2017,423592,2524.33,,Kent County Council (Kcs),KCC003,Operational Services,Revenue,Energy Costs,Facilities And Management Serv,
http://statistics.data.gov.uk/search?search=E07000114,Thanet District Council,17/01/2017,423594,-810.72,,Kent County Council (Kcs),KCC003,Operational Services,Revenue,Energy Costs,Facilities And Management Serv,
http://statistics.data.gov.uk/search?search=E07000114,Thanet District Council,17/01/2017,423595,1241.41,,Kent County Council (Kcs),KCC003,Operational Services,Revenue,Energy Costs,Facilities And Management Serv,
http://statistics.data.gov.uk/search?search=E07000114,Thanet District Council,17/01/2017,423604,2059.37,,Kent County Council (Kcs),KCC003,Operational Services,Revenue,Energy Costs,Facilities And Management Serv,
http://statistics.data.gov.uk/search?search=E07000114,Thanet District Council,17/01/2017,423786,7511.39,,Kent County Council (Kcs),KCC003,Corporate Governance,Revenue,Energy Costs,Facilities And Management Serv,
http://statistics.data.gov.uk/search?search=E07000114,Thanet District Council,17/01/2017,423787,9449.18,,Kent County Council (Kcs),KCC003,Operational Services,Revenue,Energy Costs,Facilities And Management Serv,
http://statistics.data.gov.uk/search?search=E07000114,Thanet District Council,17/01/2017,423788,6291.62,,Kent County Council (Kcs),KCC003,Operational Services,Revenue,Energy Costs,Facilities And Management Serv,
http://statistics.data.gov.uk/search?search=E07000114,Thanet District Council,17/01/2017,423789,13327.47,,Kent County Council (Kcs),KCC003,Community Services,Revenue,Energy Costs,Facilities And Management Serv,
http://statistics.data.gov.uk/search?search=E07000114,Thanet District Council,17/01/2017,423854,1568.56,,Kent County Council (Kcs),KCC003,Corporate Governance,Revenue,Energy Costs,Facilities And Management Serv,
http://statistics.data.gov.uk/search?search=E07000114,Thanet District Council,17/01/2017,423855,1007.75,,Kent County Council (Kcs),KCC003,Corporate Governance,Revenue,Energy Costs,Facilities And Management Serv,
http://statistics.data.gov.uk/search?search=E07000114,Thanet District Council,17/01/2017,423435,1864.70,,Kingdom Security Limited,KIN039,Operational Services,Revenue,Services,Street And Traffic Management,
http://statistics.data.gov.uk/search?search=E07000114,Thanet District Council,17/01/2017,423388,2000.00,,Kpmg Llp Fees Account,KPM001,Corporate Resources and S151,Revenue,Services,Financial Services,
http://statistics.data.gov.uk/search?search=E07000114,Thanet District Council,17/01/2017,423545,3411.80,,Level 3 Communications (Uk) Ltd,LEV005,Corporate Resources and S151,Balance Sheet,Telephone Holding Account,ICT,
http://statistics.data.gov.uk/search?search=E07000114,Thanet District Council,17/01/2017,423477,372.36,,Ling Metals Limited,LIN004,Operational Services,Revenue,Cleaning & Domestic Supplies,Environmental Services,
http://statistics.data.gov.uk/search?search=E07000114,Thanet District Council,17/01/2017,423442,2600.00,,Local Government Information Unit,LOC005,Chief Executive,Revenue,Grants & Subscriptions,Government Agencies,
http://statistics.data.gov.uk/search?search=E07000114,Thanet District Council,17/01/2017,422867,50265.59,,M & R Refurbishments Limited,MRR001,Corporate Resources and S151,Balance Sheet,Repairs And Mtce Holding A/C,Construction-Repair And Maint,
http://statistics.data.gov.uk/search?search=E07000114,Thanet District Council,17/01/2017,423380,19681.16,,Mears Ltd,MEA003,Corporate Resources and S151,Balance Sheet,Repairs And Mtce Holding A/C,Construction-Repair And Maint,
http://statistics.data.gov.uk/search?search=E07000114,Thanet District Council,17/01/2017,423382,17664.28,,Mears Ltd,MEA003,Corporate Resources and S151,Balance Sheet,Repairs And Mtce Holding A/C,Construction-Repair And Maint,
http://statistics.data.gov.uk/search?search=E07000114,Thanet District Council,17/01/2017,423383,487.45,,Mears Ltd,MEA003,Corporate Resources and S151,Balance Sheet,Repairs And Mtce Holding A/C,Construction-Repair And Maint,
http://statistics.data.gov.uk/search?search=E07000114,Thanet District Council,17/01/2017,423384,34393.12,,Mears Ltd,MEA003,Corporate Resources and S151,Balance Sheet,Repairs And Mtce Holding A/C,Construction-Repair And Maint,
http://statistics.data.gov.uk/search?search=E07000114,Thanet District Council,17/01/2017,423385,9616.53,,Mears Ltd,MEA003,Corporate Resources and S151,Balance Sheet,Repairs And Mtce Holding A/C,Construction-Repair And Maint,
http://statistics.data.gov.uk/search?search=E07000114,Thanet District Council,17/01/2017,423386,6325.21,,Mears Ltd,MEA003,Corporate Resources and S151,Balance Sheet,Repairs And Mtce Holding A/C,Construction-Repair And Maint,
http://statistics.data.gov.uk/search?search=E07000114,Thanet District Council,17/01/2017,423387,25465.91,,Mears Ltd,MEA003,Corporate Resources and S151,Balance Sheet,Repairs And Mtce Holding A/C,Construction-Repair And Maint,
http://statistics.data.gov.uk/search?search=E07000114,Thanet District Council,17/01/2017,423430,680.22,,Mears Ltd,MEA003,Corporate Resources and S151,Balance Sheet,Repairs And Mtce Holding A/C,Construction-Repair And Maint,
http://statistics.data.gov.uk/search?search=E07000114,Thanet District Council,17/01/2017,423431,4830.00,,Mears Ltd,MEA003,Corporate Resources and S151,Balance Sheet,Repairs And Mtce Holding A/C,Construction-Repair And Maint,
http://statistics.data.gov.uk/search?search=E07000114,Thanet District Council,17/01/2017,423793,317.13,,Mears Ltd,MEA003,Corporate Governance,Revenue,"Repairs,  Alter & Mtce - Build",Construction-Repair And Maint,
http://statistics.data.gov.uk/search?search=E07000114,Thanet District Council,17/01/2017,423647,1887.00,,Michael Page Int Recruitment Ltd,PAG008,Corporate Resources and S151,Revenue,Agency Staff,Human Resources,
http://statistics.data.gov.uk/search?search=E07000114,Thanet District Council,17/01/2017,423405,1500.00,,Moreton Hayward Ltd,MOR034,Corporate Resources and S151,Balance Sheet,Council Dwellings,Consultancy,
http://statistics.data.gov.uk/search?search=E07000114,Thanet District Council,17/01/2017,423412,582.75,,Morgan Jones Ltd,MOR001,Community Services,Revenue,Agency Staff,Human Resources,
http://statistics.data.gov.uk/search?search=E07000114,Thanet District Council,17/01/2017,423414,269.28,,Morgan Jones Ltd,MOR001,Corporate Governance,Revenue,Agency Staff,Human Resources,
http://statistics.data.gov.uk/search?search=E07000114,Thanet District Council,17/01/2017,423415,640.84,,Morgan Jones Ltd,MOR001,Chief Executive,Revenue,Agency Staff,Human Resources,
http://statistics.data.gov.uk/search?search=E07000114,Thanet District Council,17/01/2017,423784,460.69,,Morgan Jones Ltd,MOR001,Community Services,Revenue,Agency Staff,Human Resources,
http://statistics.data.gov.uk/search?search=E07000114,Thanet District Council,17/01/2017,424112,450.00,,Mr Jack Parker,PAR075,Corporate Governance,Revenue,Services,Legal Services,
http://statistics.data.gov.uk/search?search=E07000114,Thanet District Council,17/01/2017,423645,1325.00,,Oscar Associates (Uk) Limited,OSC001,East Kent Shared Services,Revenue,Agency Staff,ICT,
http://statistics.data.gov.uk/search?search=E07000114,Thanet District Council,17/01/2017,423597,1117.00,,Peer 1 (Uk) Limited,PEE003,East Kent Shared Services,Revenue,Communications & Computing,ICT,
http://statistics.data.gov.uk/search?search=E07000114,Thanet District Council,17/01/2017,424114,1500.00,,Penna Plc,PEN008,Corporate Resources and S151,Revenue,Advertising Expenses,Human Resources,
http://statistics.data.gov.uk/search?search=E07000114,Thanet District Council,17/01/2017,423395,1001.70,,Posturite Ltd,POS010,Operational Services,Revenue,"Equip, Furniture And Materials",Health And Safety,
http://statistics.data.gov.uk/search?search=E07000114,Thanet District Council,17/01/2017,423395,19.50,,Posturite Ltd,POS010,Operational Services,Revenue,"Print, Stat And Gen Off Exps",Health And Safety,
http://statistics.data.gov.uk/search?search=E07000114,Thanet District Council,17/01/2017,423133,14230.22,,Potter Raper Partnership,POT006,Corporate Resources and S151,Balance Sheet,Other Land And Buildings-Hra,Consultancy,
http://statistics.data.gov.uk/search?search=E07000114,Thanet District Council,17/01/2017,423474,216.10,,Ppg Arch Coatings Uk Ltd,PPG001,Operational Services,Revenue,"Repairs,  Alter & Mtce - Build",Building Construction Material,
http://statistics.data.gov.uk/search?search=E07000114,Thanet District Council,17/01/2017,423244,876.00,,Profile Security Services Limited,PRO018,Operational Services,Revenue,Services,Facilities And Management Serv,
http://statistics.data.gov.uk/search?search=E07000114,Thanet District Council,17/01/2017,423423,2600.00,,R Cannon,CAN007,Corporate Resources and S151,Balance Sheet,Plant And Equipment,Maritime Services,
http://statistics.data.gov.uk/search?search=E07000114,Thanet District Council,17/01/2017,423785,350.00,,R Cannon,CAN007,Operational Services,Revenue,Services,Maritime Services,
http://statistics.data.gov.uk/search?search=E07000114,Thanet District Council,17/01/2017,423345,2730.00,,R J Broadley Tree Surgery,RJB002,Operational Services,Revenue,Grounds Mtce Costs,Horticultural,
http://statistics.data.gov.uk/search?search=E07000114,Thanet District Council,17/01/2017,423447,540.00,,R J Broadley Tree Surgery,RJB002,Operational Services,Revenue,Grounds Mtce Costs,Horticultural,
http://statistics.data.gov.uk/search?search=E07000114,Thanet District Council,17/01/2017,423393,231.95,,Safetyshop,SAF010,Operational Services,Revenue,"Equip, Furniture And Materials",Health And Safety,
http://statistics.data.gov.uk/search?search=E07000114,Thanet District Council,17/01/2017,423230,2500.00,,Sarah Morgan Gardens,SAR005,Community Services,Revenue,Services,Horticultural,
http://statistics.data.gov.uk/search?search=E07000114,Thanet District Council,17/01/2017,423886,325.00,,Serco Ltd,SER002,Operational Services,Revenue,"Repairs,  Alter & Mtce - Build",Building Construction Material,
http://statistics.data.gov.uk/search?search=E07000114,Thanet District Council,17/01/2017,423887,425.00,,Serco Ltd,SER002,Operational Services,Revenue,"Repairs,  Alter & Mtce - Build",Building Construction Material,
http://statistics.data.gov.uk/search?search=E07000114,Thanet District Council,17/01/2017,424092,19264.00,,Sharpe Pritchard Llp,SHA030,Corporate Resources and S151,Balance Sheet,Other Land And Buildings-Hra,Legal Services,
http://statistics.data.gov.uk/search?search=E07000114,Thanet District Council,17/01/2017,424111,23771.20,,Sharpe Pritchard Llp,SHA030,Corporate Resources and S151,Balance Sheet,Other Land And Buildings-Hra,Legal Services,
http://statistics.data.gov.uk/search?search=E07000114,Thanet District Council,17/01/2017,423897,2900.00,,South East Building Company Limited,SEB001,Corporate Resources and S151,Balance Sheet,Capital Exp-Non Council Assets,Grants,
http://statistics.data.gov.uk/search?search=E07000114,Thanet District Council,17/01/2017,423541,5.41,,Southern Electric,SEL007,Community Services,Revenue,Energy Costs,Utilities,
http://statistics.data.gov.uk/search?search=E07000114,Thanet District Council,17/01/2017,423541,578.15,,Southern Electric,SEL007,Operational Services,Revenue,Energy Costs,Utilities,
http://statistics.data.gov.uk/search?search=E07000114,Thanet District Council,17/01/2017,423563,226.34,,Southern Electric,SEL007,Operational Services,Revenue,Energy Costs,Utilities,
http://statistics.data.gov.uk/search?search=E07000114,Thanet District Council,17/01/2017,423568,264.60,,Southern Electric,SEL007,Operational Services,Revenue,Energy Costs,Utilities,
http://statistics.data.gov.uk/search?search=E07000114,Thanet District Council,17/01/2017,423570,322.89,,Southern Electric,SEL007,Operational Services,Revenue,Energy Costs,Utilities,
http://statistics.data.gov.uk/search?search=E07000114,Thanet District Council,17/01/2017,423974,2333.35,,Southern Electric,SEL007,Community Services,Revenue,Energy Costs,Utilities,
http://statistics.data.gov.uk/search?search=E07000114,Thanet District Council,17/01/2017,423235,3706.59,,Swale Heating Ltd,SWA006,Corporate Resources and S151,Balance Sheet,Repairs And Mtce Holding A/C,Building Construction Material,
http://statistics.data.gov.uk/search?search=E07000114,Thanet District Council,17/01/2017,423507,25685.17,,Swale Heating Ltd,SWA006,Corporate Resources and S151,Balance Sheet,Repairs And Mtce Holding A/C,Building Construction Material,
http://statistics.data.gov.uk/search?search=E07000114,Thanet District Council,17/01/2017,423509,214.36,,Swale Heating Ltd,SWA006,Corporate Resources and S151,Balance Sheet,Repairs And Mtce Holding A/C,Building Construction Material,
http://statistics.data.gov.uk/search?search=E07000114,Thanet District Council,17/01/2017,423519,250.00,,Swale Heating Ltd,SWA006,Corporate Resources and S151,Balance Sheet,Repairs And Mtce Holding A/C,Building Construction Material,
http://statistics.data.gov.uk/search?search=E07000114,Thanet District Council,17/01/2017,423332,906.10,,The Fed Of Burial & Cremation Auths,FED001,Operational Services,Revenue,Grants & Subscriptions,Financial Services,
http://statistics.data.gov.uk/search?search=E07000114,Thanet District Council,17/01/2017,423779,1325.00,,The Margate Society Cic,MAR108,Community Services,Revenue,Services,Arts And Leisure Services,
http://statistics.data.gov.uk/search?search=E07000114,Thanet District Council,17/01/2017,423425,1293.00,,Topdesk Uk Limited,TOP011,East Kent Shared Services,Revenue,Communications & Computing,ICT,
http://statistics.data.gov.uk/search?search=E07000114,Thanet District Council,17/01/2017,424105,8110.09,,Trueden Disability Adaptations Ltd,TRU012,Corporate Resources and S151,Balance Sheet,Capital Exp-Non Council Assets,Grants,
http://statistics.data.gov.uk/search?search=E07000114,Thanet District Council,17/01/2017,423580,6000.00,,Turner & Townsend Project Mgmt Ltd,TUR021,Community Services,Revenue,Services,Consultancy,
http://statistics.data.gov.uk/search?search=E07000114,Thanet District Council,17/01/2017,423580,6000.00,,Turner & Townsend Project Mgmt Ltd,TUR021,Corporate Resources and S151,Balance Sheet,Other Land And Buildings-Hra,Consultancy,
http://statistics.data.gov.uk/search?search=E07000114,Thanet District Council,17/01/2017,423520,2720.00,,University Of Kent,UNI038,Community Services,Revenue,Training,Human Resources,
http://statistics.data.gov.uk/search?search=E07000114,Thanet District Council,17/01/2017,423905,1860.48,,Westbrook Construction (Margate) Ltd,WES021,Corporate Resources and S151,Balance Sheet,Capital Exp-Non Council Assets,Various Categories,
http://statistics.data.gov.uk/search?search=E07000114,Thanet District Council,18/01/2017,423208,4800.00,,Accordio Limited,ACC010,East Kent Shared Services,Revenue,Services,Consultancy,
http://statistics.data.gov.uk/search?search=E07000114,Thanet District Council,18/01/2017,421610,1095.50,,Air Products Plc,AIR014,Operational Services,Revenue,"Equip, Furniture And Materials",Utilities,
http://statistics.data.gov.uk/search?search=E07000114,Thanet District Council,18/01/2017,423586,-491.10,,Air Products Plc,AIR014,Operational Services,Revenue,"Equip, Furniture And Materials",Utilities,
http://statistics.data.gov.uk/search?search=E07000114,Thanet District Council,18/01/2017,423420,458554.14,,Burgess Marine Ltd,BUR017,Corporate Resources and S151,Balance Sheet,Plant And Equipment,Maritime Services,
http://statistics.data.gov.uk/search?search=E07000114,Thanet District Council,18/01/2017,423777,4085.00,,Burgess Marine Ltd,BUR017,Operational Services,Revenue,"Equip, Furniture And Materials",Maritime Services,
http://statistics.data.gov.uk/search?search=E07000114,Thanet District Council,18/01/2017,423110,19878.33,,Canterbury City Council,CAN004,East Kent Shared Services,Revenue,Grants & Subscriptions,Various Cats - Public Sector,
http://statistics.data.gov.uk/search?search=E07000114,Thanet District Council,18/01/2017,423143,1875.00,,Canterbury City Council,CAN004,Corporate Resources and S151,Balance Sheet,Other Land And Buildings-Hra,Various Cats - Public Sector,
http://statistics.data.gov.uk/search?search=E07000114,Thanet District Council,18/01/2017,423117,479.84,,Civica Uk Ltd,CIV003,East Kent Shared Services,Revenue,Communications & Computing,ICT,
http://statistics.data.gov.uk/search?search=E07000114,Thanet District Council,18/01/2017,424301,49476.77,,D C L G,DCL002,Corporate Resources and S151,Balance Sheet,Capital Receipts Reserve,Government Agencies,
http://statistics.data.gov.uk/search?search=E07000114,Thanet District Council,18/01/2017,424300,1900.00,,Dr Alexander Marshall,MAR100,Operational Services,Revenue,Services,Cemetery And Crematorium,
http://statistics.data.gov.uk/search?search=E07000114,Thanet District Council,18/01/2017,423760,490.50,,Farrer Barnes Limited,FAR012,Corporate Resources and S151,Revenue,Agency Staff,Human Resources,
http://statistics.data.gov.uk/search?search=E07000114,Thanet District Council,18/01/2017,423761,453.99,,Farrer Barnes Limited,FAR012,Corporate Resources and S151,Revenue,Agency Staff,Human Resources,
http://statistics.data.gov.uk/search?search=E07000114,Thanet District Council,18/01/2017,423852,22044.29,,G & W Gardner Building Cont Ltd,GAR001,Corporate Resources and S151,Balance Sheet,Community Assets,Construction-Repair And Maint,
http://statistics.data.gov.uk/search?search=E07000114,Thanet District Council,18/01/2017,424285,199.00,,Hawksmere Limited,HAW002,Community Services,Revenue,Expenses,Human Resources,
http://statistics.data.gov.uk/search?search=E07000114,Thanet District Council,18/01/2017,423211,1095.00,,Irrv,IRR002,East Kent Shared Services,Revenue,Grants & Subscriptions,Human Resources,
http://statistics.data.gov.uk/search?search=E07000114,Thanet District Council,18/01/2017,422174,304.00,,John Reeve (Plant Hire) Ltd,REE013,Operational Services,Revenue,"Repairs,  Alter & Mtce - Build",Vehicle Management,
http://statistics.data.gov.uk/search?search=E07000114,Thanet District Council,18/01/2017,422175,620.00,,John Reeve (Plant Hire) Ltd,REE013,Operational Services,Revenue,"Repairs,  Alter & Mtce - Build",Vehicle Management,
http://statistics.data.gov.uk/search?search=E07000114,Thanet District Council,18/01/2017,423443,1744.32,,Kent County Council,KCC002,Community Services,Revenue,Services,Various Cats - Public Sector,
http://statistics.data.gov.uk/search?search=E07000114,Thanet District Council,18/01/2017,423403,496.92,,Kent County Council (Kcs),KCC003,Corporate Resources and S151,Balance Sheet,Rechargeable Works,Facilities And Management Serv,
http://statistics.data.gov.uk/search?search=E07000114,Thanet District Council,18/01/2017,423404,2361.57,,Kent County Council (Kcs),KCC003,Operational Services,Revenue,"Equip, Furniture And Materials",Facilities And Management Serv,
http://statistics.data.gov.uk/search?search=E07000114,Thanet District Council,18/01/2017,424075,1749.76,,Kent County Council (Kcs),KCC003,Corporate Governance,Revenue,Energy Costs,Facilities And Management Serv,
http://statistics.data.gov.uk/search?search=E07000114,Thanet District Council,18/01/2017,424077,240.59,,Kent County Council (Kcs),KCC003,Corporate Governance,Revenue,Energy Costs,Facilities And Management Serv,
http://statistics.data.gov.uk/search?search=E07000114,Thanet District Council,18/01/2017,424078,463.98,,Kent County Council (Kcs),KCC003,Operational Services,Revenue,Energy Costs,Facilities And Management Serv,
http://statistics.data.gov.uk/search?search=E07000114,Thanet District Council,18/01/2017,424080,1404.91,,Kent County Council (Kcs),KCC003,Community Services,Revenue,Energy Costs,Facilities And Management Serv,
http://statistics.data.gov.uk/search?search=E07000114,Thanet District Council,18/01/2017,424081,597.77,,Kent County Council (Kcs),KCC003,Operational Services,Revenue,Energy Costs,Facilities And Management Serv,
http://statistics.data.gov.uk/search?search=E07000114,Thanet District Council,18/01/2017,424082,1168.75,,Kent County Council (Kcs),KCC003,Corporate Governance,Revenue,Energy Costs,Facilities And Management Serv,
http://statistics.data.gov.uk/search?search=E07000114,Thanet District Council,18/01/2017,424085,1661.44,,Kent County Council (Kcs),KCC003,Operational Services,Revenue,Energy Costs,Facilities And Management Serv,
http://statistics.data.gov.uk/search?search=E07000114,Thanet District Council,18/01/2017,423883,2000.00,,North Kent Architecture Centre Ltd,NKA001,Community Services,Revenue,Services,Consultancy,
http://statistics.data.gov.uk/search?search=E07000114,Thanet District Council,18/01/2017,423203,908.51,,Ohuk Limited,OHU001,Operational Services,Revenue,Agency Staff,Human Resources,
http://statistics.data.gov.uk/search?search=E07000114,Thanet District Council,18/01/2017,423234,811.86,,Ohuk Limited,OHU001,Operational Services,Revenue,Agency Staff,Human Resources,
http://statistics.data.gov.uk/search?search=E07000114,Thanet District Council,18/01/2017,423481,406.85,,Oracle Corporation Uk Ltd,ORA001,East Kent Shared Services,Revenue,Communications & Computing,ICT,
http://statistics.data.gov.uk/search?search=E07000114,Thanet District Council,18/01/2017,423123,4348.00,,Phoenix Software Ltd,PHO002,Corporate Resources and S151,Revenue,Communications & Computing,ICT,
http://statistics.data.gov.uk/search?search=E07000114,Thanet District Council,18/01/2017,424293,3390.00,,Playsafety Limited,PLA023,Operational Services,Revenue,"Repairs,  Alter & Mtce - Build",Health And Safety,
http://statistics.data.gov.uk/search?search=E07000114,Thanet District Council,18/01/2017,423884,950.00,,Serco Ltd,SER002,Operational Services,Revenue,"Repairs,  Alter & Mtce - Build",Building Construction Material,
http://statistics.data.gov.uk/search?search=E07000114,Thanet District Council,18/01/2017,423885,525.00,,Serco Ltd,SER002,Operational Services,Revenue,"Repairs,  Alter & Mtce - Build",Building Construction Material,
http://statistics.data.gov.uk/search?search=E07000114,Thanet District Council,18/01/2017,423163,567.11,,Southern Electric,SEL007,Corporate Governance,Revenue,Energy Costs,Utilities,
http://statistics.data.gov.uk/search?search=E07000114,Thanet District Council,18/01/2017,423914,305.85,,Southern Water,SWA001,Operational Services,Revenue,Water Services,Utilities,
http://statistics.data.gov.uk/search?search=E07000114,Thanet District Council,18/01/2017,423915,622.08,,Southern Water,SWA001,Operational Services,Revenue,Water Services,Utilities,
http://statistics.data.gov.uk/search?search=E07000114,Thanet District Council,18/01/2017,423916,642.41,,Southern Water,SWA001,Operational Services,Revenue,Water Services,Utilities,
http://statistics.data.gov.uk/search?search=E07000114,Thanet District Council,18/01/2017,423917,777.10,,Southern Water,SWA001,Operational Services,Revenue,Water Services,Utilities,
http://statistics.data.gov.uk/search?search=E07000114,Thanet District Council,18/01/2017,423227,599.00,,Thomson Reuters,THO043,Community Services,Revenue,Grants & Subscriptions,Human Resources,
http://statistics.data.gov.uk/search?search=E07000114,Thanet District Council,18/01/2017,423227,1625.00,,Thomson Reuters,THO043,Community Services,Revenue,"Print, Stat And Gen Off Exps",Human Resources,
http://statistics.data.gov.uk/search?search=E07000114,Thanet District Council,18/01/2017,423153,11267.03,,Town & Country Cleaners Ltd,TOW002,Corporate Resources and S151,Balance Sheet,Repairs And Mtce Holding A/C,Cleaning And Janitorial,
http://statistics.data.gov.uk/search?search=E07000114,Thanet District Council,18/01/2017,423432,23595.07,,Wgh Ltd,WGH001,Corporate Resources and S151,Balance Sheet,Other Land And Buildings-Hra,Consultancy,
http://statistics.data.gov.uk/search?search=E07000114,Thanet District Council,19/01/2017,421021,331.35,,Allstar Business Solutions Ltd,ALL038,Operational Services,Revenue,Direct Transport Costs,Vehicle Management,
http://statistics.data.gov.uk/search?search=E07000114,Thanet District Council,19/01/2017,424065,230.55,,Allstar Business Solutions Ltd,ALL038,Operational Services,Revenue,Direct Transport Costs,Vehicle Management,
http://statistics.data.gov.uk/search?search=E07000114,Thanet District Council,19/01/2017,424034,1297.42,,Co-Operative Bank Paypoint,COO018,Corporate Resources and S151,Revenue,Services,Financial Services,
http://statistics.data.gov.uk/search?search=E07000114,Thanet District Council,19/01/2017,424034,432.48,,Co-Operative Bank Paypoint,COO018,Community Services,Revenue,Services,Financial Services,
http://statistics.data.gov.uk/search?search=E07000114,Thanet District Council,19/01/2017,424038,1183.24,,Co-Operative Bank Paypoint,COO018,Corporate Resources and S151,Revenue,Services,Financial Services,
http://statistics.data.gov.uk/search?search=E07000114,Thanet District Council,19/01/2017,424038,394.41,,Co-Operative Bank Paypoint,COO018,Community Services,Revenue,Services,Financial Services,
http://statistics.data.gov.uk/search?search=E07000114,Thanet District Council,19/01/2017,424274,94533.29,,Dexia Public Finance Bank,DEX001,Corporate Resources and S151,Balance Sheet,Debit Interest And Expenses,Investments And Loans,
http://statistics.data.gov.uk/search?search=E07000114,Thanet District Council,19/01/2017,424389,246362.00,,Kent & Medway Towns Fire Authority,KMT001,Corporate Resources and S151,Balance Sheet,Collection Fund - Preceptors,Various Cats - Public Sector,
http://statistics.data.gov.uk/search?search=E07000114,Thanet District Council,19/01/2017,424388,3894066.00,,Kent County Council,KCC022,Corporate Resources and S151,Balance Sheet,Collection Fund - Preceptors,Various Cats - Public Sector,
http://statistics.data.gov.uk/search?search=E07000114,Thanet District Council,19/01/2017,424387,525761.00,,Kent Police & Crime Commissioner,KPA003,Corporate Resources and S151,Balance Sheet,Collection Fund - Preceptors,Various Cats - Public Sector,
http://statistics.data.gov.uk/search?search=E07000114,Thanet District Council,19/01/2017,423998,690102.00,,Maidstone Borough Council,MAI002,Corporate Resources and S151,Revenue,Revenue Financing,Various Cats - Public Sector,
http://statistics.data.gov.uk/search?search=E07000114,Thanet District Council,19/01/2017,423998,240704.00,,Maidstone Borough Council,MAI002,Corporate Resources and S151,Balance Sheet,Collection Fund,Various Cats - Public Sector,
http://statistics.data.gov.uk/search?search=E07000114,Thanet District Council,19/01/2017,424052,690102.00,,Maidstone Borough Council,MAI002,Corporate Resources and S151,Revenue,Revenue Financing,Various Cats - Public Sector,
http://statistics.data.gov.uk/search?search=E07000114,Thanet District Council,19/01/2017,424052,123097.00,,Maidstone Borough Council,MAI002,Corporate Resources and S151,Balance Sheet,Business Rate Pooling,Various Cats - Public Sector,
http://statistics.data.gov.uk/search?search=E07000114,Thanet District Council,19/01/2017,424052,240704.00,,Maidstone Borough Council,MAI002,Corporate Resources and S151,Balance Sheet,Collection Fund,Various Cats - Public Sector,
http://statistics.data.gov.uk/search?search=E07000114,Thanet District Council,19/01/2017,424033,265.79,,Nat West Bank,NWE001,Corporate Resources and S151,Revenue,Services,Various Categories,
http://statistics.data.gov.uk/search?search=E07000114,Thanet District Council,19/01/2017,424036,267.19,,Nat West Bank,NWE001,Corporate Resources and S151,Revenue,Services,Various Categories,
http://statistics.data.gov.uk/search?search=E07000114,Thanet District Council,19/01/2017,424042,3104.43,,Nat West Bank,NWE001,Corporate Resources and S151,Revenue,Services,Various Categories,
http://statistics.data.gov.uk/search?search=E07000114,Thanet District Council,19/01/2017,424042,637.63,,Nat West Bank,NWE001,East Kent Shared Services,Revenue,Services,Various Categories,
http://statistics.data.gov.uk/search?search=E07000114,Thanet District Council,19/01/2017,424001,71428.57,,Public Works Loan Board,PWL001,Corporate Resources and S151,Balance Sheet,Borrowing Repayable>1 Yr,Investments And Loans,
http://statistics.data.gov.uk/search?search=E07000114,Thanet District Council,19/01/2017,424001,6400.00,,Public Works Loan Board,PWL001,Corporate Resources and S151,Balance Sheet,Debit Interest And Expenses,Investments And Loans,
http://statistics.data.gov.uk/search?search=E07000114,Thanet District Council,19/01/2017,424019,143369.32,,Public Works Loan Board,PWL001,Corporate Resources and S151,Balance Sheet,Debit Interest And Expenses,Investments And Loans,
http://statistics.data.gov.uk/search?search=E07000114,Thanet District Council,19/01/2017,N/A,498.24,,REDACTED PERSONAL DATA,N/A,East Kent Shared Services,Revenue,Car Allowances,Non Trade Payee,
http://statistics.data.gov.uk/search?search=E07000114,Thanet District Council,19/01/2017,N/A,469.44,,REDACTED PERSONAL DATA,N/A,East Kent Shared Services,Revenue,Car Allowances,Non Trade Payee,
http://statistics.data.gov.uk/search?search=E07000114,Thanet District Council,19/01/2017,N/A,485.79,,REDACTED PERSONAL DATA,N/A,Community Services,Revenue,Car Allowances,Non Trade Payee,
http://statistics.data.gov.uk/search?search=E07000114,Thanet District Council,19/01/2017,N/A,249.12,,REDACTED PERSONAL DATA,N/A,Community Services,Revenue,Car Allowances,Non Trade Payee,
http://statistics.data.gov.uk/search?search=E07000114,Thanet District Council,19/01/2017,N/A,6.45,,REDACTED PERSONAL DATA,N/A,Community Services,Revenue,"Print, Stat And Gen Off Exps",Non Trade Payee,
http://statistics.data.gov.uk/search?search=E07000114,Thanet District Council,19/01/2017,424025,730.29,,Santander,SAN017,Corporate Resources and S151,Revenue,Services,Various Categories,
http://statistics.data.gov.uk/search?search=E07000114,Thanet District Council,19/01/2017,424026,1486.54,,Santander,SAN017,Corporate Resources and S151,Revenue,Services,Various Categories,
http://statistics.data.gov.uk/search?search=E07000114,Thanet District Council,19/01/2017,424026,495.52,,Santander,SAN017,Community Services,Revenue,Services,Various Categories,
http://statistics.data.gov.uk/search?search=E07000114,Thanet District Council,19/01/2017,424029,800.46,,Santander,SAN017,Corporate Resources and S151,Revenue,Services,Various Categories,
http://statistics.data.gov.uk/search?search=E07000114,Thanet District Council,19/01/2017,424030,1685.30,,Santander,SAN017,Corporate Resources and S151,Revenue,Services,Various Categories,
http://statistics.data.gov.uk/search?search=E07000114,Thanet District Council,19/01/2017,424030,561.77,,Santander,SAN017,Community Services,Revenue,Services,Various Categories,
http://statistics.data.gov.uk/search?search=E07000114,Thanet District Council,19/01/2017,424000,-197191.00,,Secretary Of State,SEC003,Corporate Resources and S151,Revenue,Revenue Financing,Government Agencies,
http://statistics.data.gov.uk/search?search=E07000114,Thanet District Council,19/01/2017,424000,1083260.00,,Secretary Of State,SEC003,Corporate Resources and S151,Balance Sheet,Collection Fund,Government Agencies,
http://statistics.data.gov.uk/search?search=E07000114,Thanet District Council,19/01/2017,424390,-197191.00,,Secretary Of State,SEC003,Corporate Resources and S151,Revenue,Revenue Financing,Government Agencies,
http://statistics.data.gov.uk/search?search=E07000114,Thanet District Council,19/01/2017,424390,1083260.00,,Secretary Of State,SEC003,Corporate Resources and S151,Balance Sheet,Collection Fund,Government Agencies,
http://statistics.data.gov.uk/search?search=E07000114,Thanet District Council,19/01/2017,424043,2002.45,,Worldpay Ltd,WOR008,Corporate Resources and S151,Revenue,Services,Financial Services,
http://statistics.data.gov.uk/search?search=E07000114,Thanet District Council,19/01/2017,424045,1706.70,,Worldpay Ltd,WOR008,Corporate Resources and S151,Revenue,Services,Financial Services,
http://statistics.data.gov.uk/search?search=E07000114,Thanet District Council,19/01/2017,424049,284.97,,Worldpay Ltd,WOR008,Corporate Resources and S151,Revenue,Services,Financial Services,
http://statistics.data.gov.uk/search?search=E07000114,Thanet District Council,19/01/2017,424054,362.13,,Worldpay Ltd,WOR008,Corporate Resources and S151,Revenue,Services,Financial Services,
http://statistics.data.gov.uk/search?search=E07000114,Thanet District Council,19/01/2017,424059,2202.64,,Worldpay Ltd,WOR008,Corporate Resources and S151,Revenue,Services,Financial Services,
http://statistics.data.gov.uk/search?search=E07000114,Thanet District Council,19/01/2017,424064,2099.74,,Worldpay Ltd,WOR008,Corporate Resources and S151,Revenue,Services,Financial Services,
http://statistics.data.gov.uk/search?search=E07000114,Thanet District Council,20/01/2017,424601,8010.00,,Geoffrey Borg & Co,BOR003,Corporate Resources and S151,Balance Sheet,Council Dwellings,Legal Services,
http://statistics.data.gov.uk/search?search=E07000114,Thanet District Council,20/01/2017,424602,12501.00,,Geoffrey Borg & Co,BOR003,Corporate Resources and S151,Balance Sheet,Council Dwellings,Legal Services,
http://statistics.data.gov.uk/search?search=E07000114,Thanet District Council,20/01/2017,424399,1358.93,,Getgo Technologies Uk Limited,GET008,East Kent Shared Services,Revenue,Communications & Computing,ICT,
http://statistics.data.gov.uk/search?search=E07000114,Thanet District Council,20/01/2017,424400,-1329.07,,Getgo Technologies Uk Limited,GET008,East Kent Shared Services,Revenue,Communications & Computing,ICT,
http://statistics.data.gov.uk/search?search=E07000114,Thanet District Council,20/01/2017,424591,1329.07,,Getgo Technologies Uk Limited,GET008,East Kent Shared Services,Revenue,Communications & Computing,ICT,
http://statistics.data.gov.uk/search?search=E07000114,Thanet District Council,24/01/2017,423781,400.00,,All Sign Solutions Ltd,ALL002,Community Services,Revenue,"Equip, Furniture And Materials",Building Construction Material,
http://statistics.data.gov.uk/search?search=E07000114,Thanet District Council,24/01/2017,423460,288.00,,Andrews & Elliott Limited,AND001,Operational Services,Revenue,"Repairs,  Alter & Mtce - Build",Cemetery And Crematorium,
http://statistics.data.gov.uk/search?search=E07000114,Thanet District Council,24/01/2017,423471,288.00,,Andrews & Elliott Limited,AND001,Operational Services,Revenue,"Repairs,  Alter & Mtce - Build",Cemetery And Crematorium,
http://statistics.data.gov.uk/search?search=E07000114,Thanet District Council,24/01/2017,423522,1392.00,,Andrews & Elliott Limited,AND001,Operational Services,Revenue,"Repairs,  Alter & Mtce - Build",Cemetery And Crematorium,
http://statistics.data.gov.uk/search?search=E07000114,Thanet District Council,24/01/2017,423642,576.00,,Andrews & Elliott Limited,AND001,Operational Services,Revenue,"Repairs,  Alter & Mtce - Build",Cemetery And Crematorium,
http://statistics.data.gov.uk/search?search=E07000114,Thanet District Council,24/01/2017,423643,768.00,,Andrews & Elliott Limited,AND001,Operational Services,Revenue,"Repairs,  Alter & Mtce - Build",Cemetery And Crematorium,
http://statistics.data.gov.uk/search?search=E07000114,Thanet District Council,24/01/2017,424633,2085.00,,Ascendit Lifts Ltd,ASC001,Corporate Resources and S151,Balance Sheet,Capital Exp-Non Council Assets,Grants,
http://statistics.data.gov.uk/search?search=E07000114,Thanet District Council,24/01/2017,424637,2040.00,,Ascendit Lifts Ltd,ASC001,Corporate Resources and S151,Balance Sheet,Capital Exp-Non Council Assets,Grants,
http://statistics.data.gov.uk/search?search=E07000114,Thanet District Council,24/01/2017,423650,15953.96,,Avia Solutions Limited,AVI004,Community Services,Revenue,Services,Consultancy,
http://statistics.data.gov.uk/search?search=E07000114,Thanet District Council,24/01/2017,423602,5125.00,,Building Research Establish Limited,BRE011,Community Services,Revenue,Services,Consultancy,
http://statistics.data.gov.uk/search?search=E07000114,Thanet District Council,24/01/2017,423598,288.75,,Channel Commercials Plc,CCO001,Operational Services,Revenue,Direct Transport Costs,Vehicle Management,
http://statistics.data.gov.uk/search?search=E07000114,Thanet District Council,24/01/2017,423850,2850.00,,Clarion Events Limited,CLA041,Operational Services,Revenue,Miscellaneous Expenses,Maritime Services,
http://statistics.data.gov.uk/search?search=E07000114,Thanet District Council,24/01/2017,423752,380.70,,Cobalt Telephone Technologies Ltd,COB002,Operational Services,Revenue,Services,ICT,
http://statistics.data.gov.uk/search?search=E07000114,Thanet District Council,24/01/2017,423790,2211.80,,Cobalt Telephone Technologies Ltd,COB002,Operational Services,Revenue,Services,ICT,
http://statistics.data.gov.uk/search?search=E07000114,Thanet District Council,24/01/2017,424280,2910.00,,Colliers Int Prop Advisors Uk Llp,COL033,Community Services,Revenue,Services,Legal Services,
http://statistics.data.gov.uk/search?search=E07000114,Thanet District Council,24/01/2017,423880,1200.00,,D E Warne,WAR023,Community Services,Revenue,Services,Arts And Leisure Services,
http://statistics.data.gov.uk/search?search=E07000114,Thanet District Council,24/01/2017,423462,262.76,,Dennis Eagle Ltd,DEN005,Operational Services,Revenue,Direct Transport Costs,Vehicle Management,
http://statistics.data.gov.uk/search?search=E07000114,Thanet District Council,24/01/2017,423538,220.00,,East Kent Components Ltd,EKC006,Operational Services,Revenue,Direct Transport Costs,Vehicle Management,
http://statistics.data.gov.uk/search?search=E07000114,Thanet District Council,24/01/2017,423539,353.26,,East Kent Components Ltd,EKC006,Operational Services,Revenue,Direct Transport Costs,Vehicle Management,
http://statistics.data.gov.uk/search?search=E07000114,Thanet District Council,24/01/2017,424031,462.00,,East Kent Housing Ltd,EKH002,Community Services,Revenue,"Equip, Furniture And Materials",Housing Management,
http://statistics.data.gov.uk/search?search=E07000114,Thanet District Council,24/01/2017,424037,326755.25,,East Kent Housing Ltd,EKH002,Community Services,Revenue,Other Agencies,Housing Management,
http://statistics.data.gov.uk/search?search=E07000114,Thanet District Council,24/01/2017,424087,481.64,,Evergreen Landscaping Gardening Ltd,EVE004,Corporate Governance,Revenue,Grounds Mtce Costs,Horticultural,
http://statistics.data.gov.uk/search?search=E07000114,Thanet District Council,24/01/2017,424634,1183.18,,Family Mosaic Housing,FAM001,Corporate Resources and S151,Balance Sheet,Capital Exp-Non Council Assets,Housing Management,
http://statistics.data.gov.uk/search?search=E07000114,Thanet District Council,24/01/2017,424636,1126.43,,Family Mosaic Housing,FAM001,Corporate Resources and S151,Balance Sheet,Capital Exp-Non Council Assets,Housing Management,
http://statistics.data.gov.uk/search?search=E07000114,Thanet District Council,24/01/2017,424333,604.95,,Farrer Barnes Limited,FAR012,Corporate Resources and S151,Revenue,Agency Staff,Human Resources,
http://statistics.data.gov.uk/search?search=E07000114,Thanet District Council,24/01/2017,424334,564.42,,Farrer Barnes Limited,FAR012,Corporate Resources and S151,Revenue,Agency Staff,Human Resources,
http://statistics.data.gov.uk/search?search=E07000114,Thanet District Council,24/01/2017,423759,614.00,,Frandham Boarding Kennels,FRA010,Operational Services,Revenue,Services,Environmental Services,
http://statistics.data.gov.uk/search?search=E07000114,Thanet District Council,24/01/2017,423396,1070.60,,Freight Transport Association,FRE007,Operational Services,Revenue,Direct Transport Costs,Human Resources,
http://statistics.data.gov.uk/search?search=E07000114,Thanet District Council,24/01/2017,424018,550.68,,G & G Forklifts,GGF001,Operational Services,Revenue,"Equip, Furniture And Materials",Vehicle Management,
http://statistics.data.gov.uk/search?search=E07000114,Thanet District Council,24/01/2017,424154,298.00,,Govnet Communications,GOV001,East Kent Shared Services,Revenue,Expenses,Human Resources,
http://statistics.data.gov.uk/search?search=E07000114,Thanet District Council,24/01/2017,423409,858.00,,Grammer & Company Limited,GRA024,Operational Services,Revenue,Miscellaneous Expenses,Facilities And Management Serv,
http://statistics.data.gov.uk/search?search=E07000114,Thanet District Council,24/01/2017,423446,660.00,,Gulliver'S Truck Hire Limited,GUL001,Operational Services,Revenue,Cont Hire & Operating Lease,Vehicle Management,
http://statistics.data.gov.uk/search?search=E07000114,Thanet District Council,24/01/2017,424632,7000.00,,H M Courts & Tribunal Service,HMC007,Operational Services,Revenue,Services,Government Agencies,
http://statistics.data.gov.uk/search?search=E07000114,Thanet District Council,24/01/2017,423954,329.19,,Hands On Suppliers Ltd,HAN007,Operational Services,Revenue,"Equip, Furniture And Materials",Clothing,
http://statistics.data.gov.uk/search?search=E07000114,Thanet District Council,24/01/2017,423958,1118.05,,Hays Specialist Recruitment Ltd,HAY020,Corporate Resources and S151,Balance Sheet,Council Dwellings,Human Resources,
http://statistics.data.gov.uk/search?search=E07000114,Thanet District Council,24/01/2017,423959,2400.00,,Hays Specialist Recruitment Ltd,HAY020,Corporate Resources and S151,Revenue,Services,Human Resources,
http://statistics.data.gov.uk/search?search=E07000114,Thanet District Council,24/01/2017,423960,2400.00,,Hays Specialist Recruitment Ltd,HAY020,Corporate Resources and S151,Revenue,Services,Human Resources,
http://statistics.data.gov.uk/search?search=E07000114,Thanet District Council,24/01/2017,423136,750.00,,Hi Way Services Ltd,HIW002,Operational Services,Revenue,"Repairs,  Alter & Mtce - Build",Highway Equipment And Material,
http://statistics.data.gov.uk/search?search=E07000114,Thanet District Council,24/01/2017,423456,850.00,,Hickleys Limited,HIC003,Operational Services,Revenue,"Equip, Furniture And Materials",ICT,
http://statistics.data.gov.uk/search?search=E07000114,Thanet District Council,24/01/2017,423990,3300.00,,Hometrack Data Systems Ltd,HOM011,Community Services,Revenue,Grants & Subscriptions,Financial Services,
http://statistics.data.gov.uk/search?search=E07000114,Thanet District Council,24/01/2017,423342,6401.18,,Hr Go (Kent) Ltd,HRG001,Operational Services,Revenue,Agency Staff,Human Resources,
http://statistics.data.gov.uk/search?search=E07000114,Thanet District Council,24/01/2017,423344,1591.99,,Hr Go (Kent) Ltd,HRG001,Operational Services,Revenue,Agency Staff,Human Resources,
http://statistics.data.gov.uk/search?search=E07000114,Thanet District Council,24/01/2017,423436,885.00,,Hr Go (Kent) Ltd,HRG001,Operational Services,Revenue,Agency Staff,Human Resources,
http://statistics.data.gov.uk/search?search=E07000114,Thanet District Council,24/01/2017,423438,732.60,,Hr Go (Kent) Ltd,HRG001,Operational Services,Revenue,Agency Staff,Human Resources,
http://statistics.data.gov.uk/search?search=E07000114,Thanet District Council,24/01/2017,423439,2032.21,,Hr Go (Kent) Ltd,HRG001,Operational Services,Revenue,Agency Staff,Human Resources,
http://statistics.data.gov.uk/search?search=E07000114,Thanet District Council,24/01/2017,423441,628.53,,Hr Go (Kent) Ltd,HRG001,Operational Services,Revenue,Agency Staff,Human Resources,
http://statistics.data.gov.uk/search?search=E07000114,Thanet District Council,24/01/2017,423479,20288.59,,Hr Go (Kent) Ltd,HRG001,Operational Services,Revenue,Agency Staff,Human Resources,
http://statistics.data.gov.uk/search?search=E07000114,Thanet District Council,24/01/2017,423480,2394.28,,Hr Go (Kent) Ltd,HRG001,Operational Services,Revenue,Agency Staff,Human Resources,
http://statistics.data.gov.uk/search?search=E07000114,Thanet District Council,24/01/2017,424066,870.25,,Hr Go (Kent) Ltd,HRG001,Operational Services,Revenue,Agency Staff,Human Resources,
http://statistics.data.gov.uk/search?search=E07000114,Thanet District Council,24/01/2017,424073,218.23,,Hr Go (Kent) Ltd,HRG001,Community Services,Revenue,Agency Staff,Human Resources,
http://statistics.data.gov.uk/search?search=E07000114,Thanet District Council,24/01/2017,424635,14733.00,,Hubbard & Houghton Construction Ltd,HUB003,Corporate Resources and S151,Balance Sheet,Capital Exp-Non Council Assets,Grants,
http://statistics.data.gov.uk/search?search=E07000114,Thanet District Council,24/01/2017,424102,3575.00,,Imperial Civil Enforcement Sols Ltd,IMP008,Operational Services,Revenue,Communications & Computing,Street And Traffic Management,
http://statistics.data.gov.uk/search?search=E07000114,Thanet District Council,24/01/2017,424102,977.60,,Imperial Civil Enforcement Sols Ltd,IMP008,Operational Services,Revenue,"Equip, Furniture And Materials",Street And Traffic Management,
http://statistics.data.gov.uk/search?search=E07000114,Thanet District Council,24/01/2017,423402,9541.15,,Kent County Council (Kcs),KCC003,Operational Services,Revenue,Direct Transport Costs,Facilities And Management Serv,
http://statistics.data.gov.uk/search?search=E07000114,Thanet District Council,24/01/2017,423754,33854.18,,Kent County Council (Kcs),KCC003,Operational Services,Revenue,Direct Transport Costs,Facilities And Management Serv,
http://statistics.data.gov.uk/search?search=E07000114,Thanet District Council,24/01/2017,423953,456.00,,Main Man Supplies Ltd,MAI001,Operational Services,Revenue,"Clothes, Uniforms & Laundry",Clothing,
http://statistics.data.gov.uk/search?search=E07000114,Thanet District Council,24/01/2017,423428,272.40,,Mears Ltd,MEA003,Operational Services,Revenue,"Repairs,  Alter & Mtce - Build",Construction-Repair And Maint,
http://statistics.data.gov.uk/search?search=E07000114,Thanet District Council,24/01/2017,423429,412.12,,Mears Ltd,MEA003,Operational Services,Revenue,"Repairs,  Alter & Mtce - Build",Construction-Repair And Maint,
http://statistics.data.gov.uk/search?search=E07000114,Thanet District Council,24/01/2017,423856,4156.40,,Med Clean South Ltd,MED015,Operational Services,Revenue,Cleaning & Domestic Supplies,Cleaning And Janitorial,
http://statistics.data.gov.uk/search?search=E07000114,Thanet District Council,24/01/2017,423872,2205.00,,Metric Group Ltd,MET001,Operational Services,Revenue,"Equip, Furniture And Materials",Street And Traffic Management,
http://statistics.data.gov.uk/search?search=E07000114,Thanet District Council,24/01/2017,423873,628.26,,Metric Group Ltd,MET001,Operational Services,Revenue,Communications & Computing,Street And Traffic Management,
http://statistics.data.gov.uk/search?search=E07000114,Thanet District Council,24/01/2017,424639,7959.46,,Mitchell & Co Uk Ltd,MIT008,Corporate Resources and S151,Balance Sheet,Capital Exp-Non Council Assets,Grants,
http://statistics.data.gov.uk/search?search=E07000114,Thanet District Council,24/01/2017,424539,10000.00,,Neopost Limited Neofunds,NEO004,Corporate Governance,Revenue,Communications & Computing,Mail Services,
http://statistics.data.gov.uk/search?search=E07000114,Thanet District Council,24/01/2017,423881,842.94,,Northgate Public Services (Uk) Ltd,NOR018,Community Services,Revenue,Communications & Computing,ICT,
http://statistics.data.gov.uk/search?search=E07000114,Thanet District Council,24/01/2017,424103,32716.00,,Northgate Public Services (Uk) Ltd,NOR018,Corporate Resources and S151,Revenue,Communications & Computing,ICT,
http://statistics.data.gov.uk/search?search=E07000114,Thanet District Council,24/01/2017,423798,1114.44,,Ntm-Gb Limited,NTM001,Operational Services,Revenue,Direct Transport Costs,Vehicle Management,
http://statistics.data.gov.uk/search?search=E07000114,Thanet District Council,24/01/2017,423398,18296.90,,Ocs Group Uk Ltd T/A Fountains,OCS005,Operational Services,Revenue,Cleaning & Domestic Supplies,Cleaning And Janitorial,
http://statistics.data.gov.uk/search?search=E07000114,Thanet District Council,24/01/2017,423399,418.06,,Ocs Group Uk Ltd T/A Fountains,OCS005,Operational Services,Revenue,Cleaning & Domestic Supplies,Cleaning And Janitorial,
http://statistics.data.gov.uk/search?search=E07000114,Thanet District Council,24/01/2017,423400,817.33,,Ocs Group Uk Ltd T/A Fountains,OCS005,Operational Services,Revenue,Fixtures & Fittings,Cleaning And Janitorial,
http://statistics.data.gov.uk/search?search=E07000114,Thanet District Council,24/01/2017,423407,596.00,,Ocs Group Uk Ltd T/A Fountains,OCS005,Operational Services,Revenue,Cleaning & Domestic Supplies,Cleaning And Janitorial,
http://statistics.data.gov.uk/search?search=E07000114,Thanet District Council,24/01/2017,423408,596.00,,Ocs Group Uk Ltd T/A Fountains,OCS005,Operational Services,Revenue,Cleaning & Domestic Supplies,Cleaning And Janitorial,
http://statistics.data.gov.uk/search?search=E07000114,Thanet District Council,24/01/2017,423882,886.71,,Ocs Group Uk Ltd T/A Fountains,OCS005,Corporate Governance,Revenue,Cleaning & Domestic Supplies,Cleaning And Janitorial,
http://statistics.data.gov.uk/search?search=E07000114,Thanet District Council,24/01/2017,424118,21877.68,,Ovenden Allworks Limited,OVE008,Operational Services,Revenue,"Repairs,  Alter & Mtce - Build",Construction-Repair And Maint,
http://statistics.data.gov.uk/search?search=E07000114,Thanet District Council,24/01/2017,424538,9303.83,,Playle & Partners Llp,PLA030,Corporate Resources and S151,Balance Sheet,Other Land And Buildings-Hra,Human Resources,
http://statistics.data.gov.uk/search?search=E07000114,Thanet District Council,24/01/2017,423849,22695.89,,Profile Security Services Limited,PRO018,Operational Services,Revenue,Services,Facilities And Management Serv,
http://statistics.data.gov.uk/search?search=E07000114,Thanet District Council,24/01/2017,424074,227.50,,R Cannon,CAN007,Operational Services,Revenue,Services,Maritime Services,
http://statistics.data.gov.uk/search?search=E07000114,Thanet District Council,24/01/2017,423510,407.70,,R S Components Ltd,RSC001,Operational Services,Revenue,"Equip, Furniture And Materials",Maritime Services,
http://statistics.data.gov.uk/search?search=E07000114,Thanet District Council,24/01/2017,424638,14973.91,,REDACTED PERSONAL DATA,N/A,Corporate Resources and S151,Balance Sheet,Capital Exp-Non Council Assets,Grants,
http://statistics.data.gov.uk/search?search=E07000114,Thanet District Council,24/01/2017,423889,278.57,,Sevenoaks District Council,SEV001,East Kent Shared Services,Revenue,Employee Related Schemes,Various Cats - Public Sector,
http://statistics.data.gov.uk/search?search=E07000114,Thanet District Council,24/01/2017,423961,395.00,,Sian Ellis,ELL018,Community Services,Revenue,Services,Stationery,
http://statistics.data.gov.uk/search?search=E07000114,Thanet District Council,24/01/2017,423523,1947.60,,Sparshatts Of Kent Ltd,SPA008,Operational Services,Revenue,Direct Transport Costs,Vehicle Management,
http://statistics.data.gov.uk/search?search=E07000114,Thanet District Council,24/01/2017,423603,324.00,,The Grass Group,GRA045,Operational Services,Revenue,"Equip, Furniture And Materials",Vehicle Management,
http://statistics.data.gov.uk/search?search=E07000114,Thanet District Council,24/01/2017,423548,83.09,,Veolia Es (Uk) Ltd,VEO001,Corporate Resources and S151,Balance Sheet,Rechargeable Works,Environmental Services,
http://statistics.data.gov.uk/search?search=E07000114,Thanet District Council,24/01/2017,423548,2301.48,,Veolia Es (Uk) Ltd,VEO001,Operational Services,Revenue,Cleaning & Domestic Supplies,Environmental Services,
http://statistics.data.gov.uk/search?search=E07000114,Thanet District Council,24/01/2017,423756,2194.39,,Viridian Energy Solutions Limited,VIR005,Corporate Resources and S151,Balance Sheet,Repairs And Mtce Holding A/C,Facilities And Management Serv,
http://statistics.data.gov.uk/search?search=E07000114,Thanet District Council,26/01/2017,PC9189,7.99,,Amazon Prime,N/A,Operational Services,Revenue,"Equip, Furniture And Materials",Stationery,
http://statistics.data.gov.uk/search?search=E07000114,Thanet District Council,26/01/2017,PC9150,37.45,,Amazon UK Marketplace,N/A,Corporate Resources and S151,Revenue,"Equip, Furniture And Materials",Stationery,
http://statistics.data.gov.uk/search?search=E07000114,Thanet District Council,26/01/2017,PC9127,39.00,,Asda,N/A,Community Services,Revenue,Catering,Catering,
http://statistics.data.gov.uk/search?search=E07000114,Thanet District Council,26/01/2017,PC9128,4.16,,Asda,N/A,Community Services,Revenue,Catering,Catering,
http://statistics.data.gov.uk/search?search=E07000114,Thanet District Council,26/01/2017,424646,250.00,,Association Of Building Engineers,ASS003,Community Services,Revenue,Expenses,Human Resources,
http://statistics.data.gov.uk/search?search=E07000114,Thanet District Council,26/01/2017,PC9146,3.56,,B & Q,N/A,Community Services,Revenue,"Repairs,  Alter & Mtce - Build",Building Construction Material,
http://statistics.data.gov.uk/search?search=E07000114,Thanet District Council,26/01/2017,PC9124,8.99,,Booker Ltd,N/A,Corporate Governance,Revenue,Catering,Catering,
http://statistics.data.gov.uk/search?search=E07000114,Thanet District Council,26/01/2017,PC9125,62.93,,Booker Ltd,N/A,Operational Services,Revenue,Catering,Catering,
http://statistics.data.gov.uk/search?search=E07000114,Thanet District Council,26/01/2017,424288,300.00,,Bradstowe Chartered Surveyors,BRA027,Corporate Resources and S151,Balance Sheet,Council Dwellings,Facilities And Management Serv,
http://statistics.data.gov.uk/search?search=E07000114,Thanet District Council,26/01/2017,PC9165,5.54,,Canterbury Anpr,N/A,Community Services,Revenue,Car Allowances,Human Resources,
http://statistics.data.gov.uk/search?search=E07000114,Thanet District Council,26/01/2017,PC9088,-12.18,,Canterbury City Intern,N/A,East Kent Shared Services,Revenue,"Equip, Furniture And Materials",ICT,
http://statistics.data.gov.uk/search?search=E07000114,Thanet District Council,26/01/2017,PC9184,147.18,,Canterbury City Intern,N/A,East Kent Shared Services,Revenue,Catering,ICT,
http://statistics.data.gov.uk/search?search=E07000114,Thanet District Council,26/01/2017,PC9185,-147.18,,Canterbury City Intern,N/A,East Kent Shared Services,Revenue,Catering,ICT,
http://statistics.data.gov.uk/search?search=E07000114,Thanet District Council,26/01/2017,423956,229.14,,Channel Commercials Plc,CCO001,Operational Services,Revenue,Direct Transport Costs,Vehicle Management,
http://statistics.data.gov.uk/search?search=E07000114,Thanet District Council,26/01/2017,424093,232.00,,Channel Commercials Plc,CCO001,Operational Services,Revenue,Direct Transport Costs,Vehicle Management,
http://statistics.data.gov.uk/search?search=E07000114,Thanet District Council,26/01/2017,424311,2510.00,,Civica Uk Ltd,CIV003,Corporate Resources and S151,Revenue,Communications & Computing,ICT,
http://statistics.data.gov.uk/search?search=E07000114,Thanet District Council,26/01/2017,424046,420.00,,Connaught Hotel Dover Limited,CON046,Community Services,Revenue,Services,Housing Management,
http://statistics.data.gov.uk/search?search=E07000114,Thanet District Council,26/01/2017,424050,980.00,,Connaught Hotel Dover Limited,CON046,Community Services,Revenue,Services,Housing Management,
http://statistics.data.gov.uk/search?search=E07000114,Thanet District Council,26/01/2017,424053,420.00,,Connaught Hotel Dover Limited,CON046,Community Services,Revenue,Services,Housing Management,
http://statistics.data.gov.uk/search?search=E07000114,Thanet District Council,26/01/2017,424055,1260.00,,Connaught Hotel Dover Limited,CON046,Community Services,Revenue,Services,Housing Management,
http://statistics.data.gov.uk/search?search=E07000114,Thanet District Council,26/01/2017,424058,700.00,,Connaught Hotel Dover Limited,CON046,Community Services,Revenue,Services,Housing Management,
http://statistics.data.gov.uk/search?search=E07000114,Thanet District Council,26/01/2017,424060,540.00,,Connaught Hotel Dover Limited,CON046,Community Services,Revenue,Services,Housing Management,
http://statistics.data.gov.uk/search?search=E07000114,Thanet District Council,26/01/2017,PC9186,165.00,,County Court Canterbury,N/A,Operational Services,Revenue,Services,Various Cats - Public Sector,
http://statistics.data.gov.uk/search?search=E07000114,Thanet District Council,26/01/2017,424338,1024.64,,Dover District Council,DOV001,East Kent Shared Services,Revenue,Employee Related Schemes,Various Cats - Public Sector,
http://statistics.data.gov.uk/search?search=E07000114,Thanet District Council,26/01/2017,PC9134,232.50,,DVLA Vehicle Tax,N/A,Community Services,Revenue,Cont Hire & Operating Lease,Various Cats - Public Sector,
http://statistics.data.gov.uk/search?search=E07000114,Thanet District Council,26/01/2017,424888,210.30,,Electoral Reform Services,ELE010,Corporate Governance,Revenue,Services,Facilities And Management Serv,
http://statistics.data.gov.uk/search?search=E07000114,Thanet District Council,26/01/2017,PC9129,460.00,,Emarketeers,N/A,Corporate Resources and S151,Revenue,Expenses,Human Resources,
http://statistics.data.gov.uk/search?search=E07000114,Thanet District Council,26/01/2017,PC9123,143.33,,Facebook,N/A,Corporate Resources and S151,Revenue,Miscellaneous Expenses,Facilities And Management Serv,
http://statistics.data.gov.uk/search?search=E07000114,Thanet District Council,26/01/2017,PC9170,68.35,,Firstaidforless.Co.Uk,N/A,Operational Services,Revenue,"Equip, Furniture And Materials",Healthcare,
http://statistics.data.gov.uk/search?search=E07000114,Thanet District Council,26/01/2017,423767,660.00,,Florence Court Hotel,FLO003,Community Services,Revenue,Services,Housing Management,
http://statistics.data.gov.uk/search?search=E07000114,Thanet District Council,26/01/2017,423768,1550.00,,Florence Court Hotel,FLO003,Community Services,Revenue,Services,Housing Management,
http://statistics.data.gov.uk/search?search=E07000114,Thanet District Council,26/01/2017,423769,1085.00,,Florence Court Hotel,FLO003,Community Services,Revenue,Services,Housing Management,
http://statistics.data.gov.uk/search?search=E07000114,Thanet District Council,26/01/2017,423771,1085.00,,Florence Court Hotel,FLO003,Community Services,Revenue,Services,Housing Management,
http://statistics.data.gov.uk/search?search=E07000114,Thanet District Council,26/01/2017,423772,930.00,,Florence Court Hotel,FLO003,Community Services,Revenue,Services,Housing Management,
http://statistics.data.gov.uk/search?search=E07000114,Thanet District Council,26/01/2017,423773,930.00,,Florence Court Hotel,FLO003,Community Services,Revenue,Services,Housing Management,
http://statistics.data.gov.uk/search?search=E07000114,Thanet District Council,26/01/2017,423774,1085.00,,Florence Court Hotel,FLO003,Community Services,Revenue,Services,Housing Management,
http://statistics.data.gov.uk/search?search=E07000114,Thanet District Council,26/01/2017,423775,630.00,,Florence Court Hotel,FLO003,Community Services,Revenue,Services,Housing Management,
http://statistics.data.gov.uk/search?search=E07000114,Thanet District Council,26/01/2017,423776,570.00,,Florence Court Hotel,FLO003,Community Services,Revenue,Services,Housing Management,
http://statistics.data.gov.uk/search?search=E07000114,Thanet District Council,26/01/2017,423585,660.00,,Gulliver'S Truck Hire Limited,GUL001,Operational Services,Revenue,Cont Hire & Operating Lease,Vehicle Management,
http://statistics.data.gov.uk/search?search=E07000114,Thanet District Council,26/01/2017,424101,660.00,,Gulliver'S Truck Hire Limited,GUL001,Operational Services,Revenue,Cont Hire & Operating Lease,Vehicle Management,
http://statistics.data.gov.uk/search?search=E07000114,Thanet District Council,26/01/2017,424335,258.32,,H E Municipal Engineering Ltd,HEM003,Operational Services,Revenue,Direct Transport Costs,Vehicle Management,
http://statistics.data.gov.uk/search?search=E07000114,Thanet District Council,26/01/2017,424500,1105.00,,Hays Specialist Recruitment Ltd,HAY020,Corporate Resources and S151,Balance Sheet,Council Dwellings,Human Resources,
http://statistics.data.gov.uk/search?search=E07000114,Thanet District Council,26/01/2017,PC9176,75.00,,HMCTS-Kent,N/A,East Kent Shared Services,Revenue,Services,Various Cats - Public Sector,
http://statistics.data.gov.uk/search?search=E07000114,Thanet District Council,26/01/2017,PC9181,1074.00,,HMCTS-Kent,N/A,East Kent Shared Services,Revenue,Services,Various Cats - Public Sector,
http://statistics.data.gov.uk/search?search=E07000114,Thanet District Council,26/01/2017,PC9182,333.00,,HMCTS-Kent,N/A,East Kent Shared Services,Revenue,Services,Various Cats - Public Sector,
http://statistics.data.gov.uk/search?search=E07000114,Thanet District Council,26/01/2017,PC9183,1239.00,,HMCTS-Kent,N/A,East Kent Shared Services,Revenue,Services,Various Cats - Public Sector,
http://statistics.data.gov.uk/search?search=E07000114,Thanet District Council,26/01/2017,424067,732.60,,Hr Go (Kent) Ltd,HRG001,Operational Services,Revenue,Agency Staff,Human Resources,
http://statistics.data.gov.uk/search?search=E07000114,Thanet District Council,26/01/2017,424069,359.10,,Hr Go (Kent) Ltd,HRG001,Operational Services,Revenue,Agency Staff,Human Resources,
http://statistics.data.gov.uk/search?search=E07000114,Thanet District Council,26/01/2017,424070,591.31,,Hr Go (Kent) Ltd,HRG001,Operational Services,Revenue,Agency Staff,Human Resources,
http://statistics.data.gov.uk/search?search=E07000114,Thanet District Council,26/01/2017,424071,381.35,,Hr Go (Kent) Ltd,HRG001,Operational Services,Revenue,Agency Staff,Human Resources,
http://statistics.data.gov.uk/search?search=E07000114,Thanet District Council,26/01/2017,424072,870.25,,Hr Go (Kent) Ltd,HRG001,Operational Services,Revenue,Agency Staff,Human Resources,
http://statistics.data.gov.uk/search?search=E07000114,Thanet District Council,26/01/2017,424340,9247.39,,Hr Go (Kent) Ltd,HRG001,Operational Services,Revenue,Agency Staff,Human Resources,
http://statistics.data.gov.uk/search?search=E07000114,Thanet District Council,26/01/2017,424341,1394.92,,Hr Go (Kent) Ltd,HRG001,Operational Services,Revenue,Agency Staff,Human Resources,
http://statistics.data.gov.uk/search?search=E07000114,Thanet District Council,26/01/2017,424446,529.47,,Hr Go (Kent) Ltd,HRG001,Community Services,Revenue,Agency Staff,Human Resources,
http://statistics.data.gov.uk/search?search=E07000114,Thanet District Council,26/01/2017,424021,559.00,,Ideal Industries Limited,IDE009,Operational Services,Revenue,"Equip, Furniture And Materials",Health And Safety,
http://statistics.data.gov.uk/search?search=E07000114,Thanet District Council,26/01/2017,424608,400.11,,Insight Direct (Uk) Ltd,INS013,Community Services,Revenue,Communications & Computing,ICT,
http://statistics.data.gov.uk/search?search=E07000114,Thanet District Council,26/01/2017,424339,223.74,,L W Burt & Son Ltd,BUR027,Corporate Governance,Revenue,"Repairs,  Alter & Mtce - Build",Construction-Repair And Maint,
http://statistics.data.gov.uk/search?search=E07000114,Thanet District Council,26/01/2017,PC9139,79.17,,Liberty Inns UK Ltd,N/A,Corporate Resources and S151,Revenue,Services,Human Resources,
http://statistics.data.gov.uk/search?search=E07000114,Thanet District Council,26/01/2017,PC9177,66.67,,Liberty Inns UK Ltd,N/A,East Kent Shared Services,Revenue,Catering,Human Resources,
http://statistics.data.gov.uk/search?search=E07000114,Thanet District Council,26/01/2017,PC9178,22.00,3.67,Liberty Inns UK Ltd,N/A,East Kent Shared Services,Revenue,Catering,Human Resources,
http://statistics.data.gov.uk/search?search=E07000114,Thanet District Council,26/01/2017,PC9187,21.70,,Liberty Inns UK Ltd,N/A,Corporate Resources and S151,Revenue,Services,Human Resources,
http://statistics.data.gov.uk/search?search=E07000114,Thanet District Council,26/01/2017,PC9147,79.10,,London & South Eastern,N/A,Corporate Resources and S151,Revenue,Expenses,Human Resources,
http://statistics.data.gov.uk/search?search=E07000114,Thanet District Council,26/01/2017,PC9162,60.00,,Moneyclaim.gov,N/A,Operational Services,Revenue,Services,Various Cats - Public Sector,
http://statistics.data.gov.uk/search?search=E07000114,Thanet District Council,26/01/2017,423783,314.16,,Morgan Jones Ltd,MOR001,Corporate Governance,Revenue,Agency Staff,Human Resources,
http://statistics.data.gov.uk/search?search=E07000114,Thanet District Council,26/01/2017,424495,314.16,,Morgan Jones Ltd,MOR001,Corporate Governance,Revenue,Agency Staff,Human Resources,
http://statistics.data.gov.uk/search?search=E07000114,Thanet District Council,26/01/2017,424820,314.16,,Morgan Jones Ltd,MOR001,Corporate Governance,Revenue,Agency Staff,Human Resources,
http://statistics.data.gov.uk/search?search=E07000114,Thanet District Council,26/01/2017,424091,16731.00,,Mr D M Littleboy,LIT007,Corporate Resources and S151,Balance Sheet,Heritage Assets,Arts And Leisure Services,
http://statistics.data.gov.uk/search?search=E07000114,Thanet District Council,26/01/2017,424063,482.76,,Ntm-Gb Limited,NTM001,Operational Services,Revenue,Direct Transport Costs,Vehicle Management,
http://statistics.data.gov.uk/search?search=E07000114,Thanet District Council,26/01/2017,PC9130,10.50,,Oyezformslink,N/A,Community Services,Revenue,Services,Stationery,
http://statistics.data.gov.uk/search?search=E07000114,Thanet District Council,26/01/2017,424544,1100.00,,Phoenix Software Ltd,PHO002,Community Services,Revenue,Communications & Computing,ICT,
http://statistics.data.gov.uk/search?search=E07000114,Thanet District Council,26/01/2017,PC9112,325.00,,Possessionclaim.gov,N/A,Community Services,Revenue,Services,Various Cats - Public Sector,
http://statistics.data.gov.uk/search?search=E07000114,Thanet District Council,26/01/2017,PC9113,325.00,,Possessionclaim.gov,N/A,Community Services,Revenue,Services,Various Cats - Public Sector,
http://statistics.data.gov.uk/search?search=E07000114,Thanet District Council,26/01/2017,PC9161,325.00,,Possessionclaim.gov,N/A,Community Services,Revenue,Services,Various Cats - Public Sector,
http://statistics.data.gov.uk/search?search=E07000114,Thanet District Council,26/01/2017,PC9179,247.47,,Premier Inn,N/A,East Kent Shared Services,Revenue,Expenses,Human Resources,
http://statistics.data.gov.uk/search?search=E07000114,Thanet District Council,26/01/2017,PC9180,124.15,,Premier Inn,N/A,East Kent Shared Services,Revenue,Expenses,Human Resources,
http://statistics.data.gov.uk/search?search=E07000114,Thanet District Council,26/01/2017,PC9151,175.00,,Quayside-Cabotswoo,N/A,Operational Services,Revenue,"Clothes, Uniforms & Laundry",Clothing,
http://statistics.data.gov.uk/search?search=E07000114,Thanet District Council,26/01/2017,PC9122,41.66,,Ramsgate Garden Centre,N/A,Operational Services,Revenue,"Equip, Furniture And Materials",Horticulture,
http://statistics.data.gov.uk/search?search=E07000114,Thanet District Council,26/01/2017,424156,213.53,,Royal Mail,ROY004,Corporate Governance,Revenue,Communications & Computing,Mail Services,
http://statistics.data.gov.uk/search?search=E07000114,Thanet District Council,26/01/2017,PC9144,11.00,1.84,Sainsburys,N/A,Operational Services,Revenue,Miscellaneous Expenses,Catering,
http://statistics.data.gov.uk/search?search=E07000114,Thanet District Council,26/01/2017,PC9160,67.50,,Smiths Court Hotel,N/A,Community Services,Revenue,Grants & Subscriptions,Human Resources,
http://statistics.data.gov.uk/search?search=E07000114,Thanet District Council,26/01/2017,PC9148,27.70,,Southeastern Trains,N/A,Operational Services,Revenue,Public Transport,Human Resources,
http://statistics.data.gov.uk/search?search=E07000114,Thanet District Council,26/01/2017,PC9149,185.00,,Southeastern Trains,N/A,Corporate Resources and S151,Revenue,Public Transport,Human Resources,
http://statistics.data.gov.uk/search?search=E07000114,Thanet District Council,26/01/2017,PC9133,-38.00,,Southeastern Web,N/A,Community Services,Revenue,Public Transport,Human Resources,
http://statistics.data.gov.uk/search?search=E07000114,Thanet District Council,26/01/2017,PC9136,73.90,,Southeastern Web,N/A,East Kent Shared Services,Revenue,Public Transport,Human Resources,
http://statistics.data.gov.uk/search?search=E07000114,Thanet District Council,26/01/2017,PC9137,48.10,,Southeastern Web,N/A,Corporate Resources and S151,Revenue,Public Transport,Human Resources,
http://statistics.data.gov.uk/search?search=E07000114,Thanet District Council,26/01/2017,PC9138,69.90,,Southeastern Web,N/A,Corporate Resources and S151,Revenue,Public Transport,Human Resources,
http://statistics.data.gov.uk/search?search=E07000114,Thanet District Council,26/01/2017,424131,16083.32,,Southern Electric,SEL007,Community Services,Revenue,Energy Costs,Utilities,
http://statistics.data.gov.uk/search?search=E07000114,Thanet District Council,26/01/2017,424090,450.00,,Teleshore (Uk) Ltd,TEL003,Operational Services,Revenue,"Equip, Furniture And Materials",Cemetery And Crematorium,
http://statistics.data.gov.uk/search?search=E07000114,Thanet District Council,26/01/2017,PC9142,5.53,,Tesco,N/A,Operational Services,Revenue,Miscellaneous Expenses,Catering,
http://statistics.data.gov.uk/search?search=E07000114,Thanet District Council,26/01/2017,PC9145,4.58,,Tesco,N/A,Operational Services,Revenue,Miscellaneous Expenses,Catering,
http://statistics.data.gov.uk/search?search=E07000114,Thanet District Council,26/01/2017,PC9141,173.37,,Tesco Direct,N/A,Operational Services,Revenue,Miscellaneous Expenses,Domestic Goods,
http://statistics.data.gov.uk/search?search=E07000114,Thanet District Council,26/01/2017,PC9121,355.00,,Thanet County Court,N/A,Community Services,Revenue,Services,Various Cats - Public Sector,
http://statistics.data.gov.uk/search?search=E07000114,Thanet District Council,26/01/2017,PC9131,355.00,,Thanet County Court,N/A,Community Services,Revenue,Services,Various Cats - Public Sector,
http://statistics.data.gov.uk/search?search=E07000114,Thanet District Council,26/01/2017,424386,665.00,,The Darkroom Project Limited,DAR010,Community Services,Revenue,Services,Arts And Leisure Services,
http://statistics.data.gov.uk/search?search=E07000114,Thanet District Council,26/01/2017,423503,2916.67,,The Glenwood Hotel,GLE007,Community Services,Revenue,Services,Housing Management,
http://statistics.data.gov.uk/search?search=E07000114,Thanet District Council,26/01/2017,423504,3150.03,,The Glenwood Hotel,GLE007,Community Services,Revenue,Services,Housing Management,
http://statistics.data.gov.uk/search?search=E07000114,Thanet District Council,26/01/2017,423505,1370.82,,The Glenwood Hotel,GLE007,Community Services,Revenue,Services,Housing Management,
http://statistics.data.gov.uk/search?search=E07000114,Thanet District Council,26/01/2017,423572,3358.33,,The Glenwood Hotel,GLE007,Community Services,Revenue,Services,Housing Management,
http://statistics.data.gov.uk/search?search=E07000114,Thanet District Council,26/01/2017,423573,3150.00,,The Glenwood Hotel,GLE007,Community Services,Revenue,Services,Housing Management,
http://statistics.data.gov.uk/search?search=E07000114,Thanet District Council,26/01/2017,423574,3354.17,,The Glenwood Hotel,GLE007,Community Services,Revenue,Services,Housing Management,
http://statistics.data.gov.uk/search?search=E07000114,Thanet District Council,26/01/2017,423575,2683.33,,The Glenwood Hotel,GLE007,Community Services,Revenue,Services,Housing Management,
http://statistics.data.gov.uk/search?search=E07000114,Thanet District Council,26/01/2017,423576,3108.36,,The Glenwood Hotel,GLE007,Community Services,Revenue,Services,Housing Management,
http://statistics.data.gov.uk/search?search=E07000114,Thanet District Council,26/01/2017,423577,1412.49,,The Glenwood Hotel,GLE007,Community Services,Revenue,Services,Housing Management,
http://statistics.data.gov.uk/search?search=E07000114,Thanet District Council,26/01/2017,424328,3087.50,,The Glenwood Hotel,GLE007,Community Services,Revenue,Services,Housing Management,
http://statistics.data.gov.uk/search?search=E07000114,Thanet District Council,26/01/2017,424329,2312.50,,The Glenwood Hotel,GLE007,Community Services,Revenue,Services,Housing Management,
http://statistics.data.gov.uk/search?search=E07000114,Thanet District Council,26/01/2017,424330,2470.82,,The Glenwood Hotel,GLE007,Community Services,Revenue,Services,Housing Management,
http://statistics.data.gov.uk/search?search=E07000114,Thanet District Council,26/01/2017,424344,2975.03,,The Glenwood Hotel,GLE007,Community Services,Revenue,Services,Housing Management,
http://statistics.data.gov.uk/search?search=E07000114,Thanet District Council,26/01/2017,PC9120,360.00,,The Happy Dolphin,N/A,Community Services,Revenue,Grants & Subscriptions,Human Resources,
http://statistics.data.gov.uk/search?search=E07000114,Thanet District Council,26/01/2017,PC9132,100.00,,The Happy Dolphin,N/A,Community Services,Revenue,Grants & Subscriptions,Human Resources,
http://statistics.data.gov.uk/search?search=E07000114,Thanet District Council,26/01/2017,424889,300.00,,The Racing Greyhound Pub,RAC005,Corporate Governance,Revenue,Rents,Facilities And Management Serv,
http://statistics.data.gov.uk/search?search=E07000114,Thanet District Council,26/01/2017,424890,300.00,,The Racing Greyhound Pub,RAC005,Corporate Governance,Revenue,Rents,Facilities And Management Serv,
http://statistics.data.gov.uk/search?search=E07000114,Thanet District Council,26/01/2017,424891,300.00,,The Racing Greyhound Pub,RAC005,Corporate Governance,Revenue,Rents,Facilities And Management Serv,
http://statistics.data.gov.uk/search?search=E07000114,Thanet District Council,26/01/2017,424892,300.00,,The Racing Greyhound Pub,RAC005,Corporate Governance,Revenue,Rents,Facilities And Management Serv,
http://statistics.data.gov.uk/search?search=E07000114,Thanet District Council,26/01/2017,PC9163,78.33,,Travelodge,N/A,Community Services,Revenue,Grants & Subscriptions,Human Resources,
http://statistics.data.gov.uk/search?search=E07000114,Thanet District Council,26/01/2017,PC9164,36.67,,Travelodge,N/A,Community Services,Revenue,Grants & Subscriptions,Human Resources,
http://statistics.data.gov.uk/search?search=E07000114,Thanet District Council,26/01/2017,PC9135,145.50,,TV Licensing,N/A,East Kent Shared Services,Revenue,Services,Various Cats - Public Sector,
http://statistics.data.gov.uk/search?search=E07000114,Thanet District Council,26/01/2017,PC9126,4.99,,WH Smith,N/A,Operational Services,Revenue,"Equip, Furniture And Materials",Stationery,
http://statistics.data.gov.uk/search?search=E07000114,Thanet District Council,30/01/2017,424395,875.78,,Allstar Business Solutions Ltd,ALL038,Operational Services,Revenue,Direct Transport Costs,Vehicle Management,
http://statistics.data.gov.uk/search?search=E07000114,Thanet District Council,31/01/2017,424610,796.16,,Air Liquide Uk Ltd,AIR013,Community Services,Revenue,"Equip, Furniture And Materials",Utilities,
http://statistics.data.gov.uk/search?search=E07000114,Thanet District Council,31/01/2017,423988,2304.00,,Andrews & Elliott Limited,AND001,Operational Services,Revenue,"Repairs,  Alter & Mtce - Build",Cemetery And Crematorium,
http://statistics.data.gov.uk/search?search=E07000114,Thanet District Council,31/01/2017,424308,2473.33,,Andrews & Elliott Limited,AND001,Operational Services,Revenue,"Repairs,  Alter & Mtce - Build",Cemetery And Crematorium,
http://statistics.data.gov.uk/search?search=E07000114,Thanet District Council,31/01/2017,424623,622.00,,Aston Walker,AST008,Community Services,Revenue,Services,Cemetery And Crematorium,
http://statistics.data.gov.uk/search?search=E07000114,Thanet District Council,31/01/2017,424624,622.00,,Aston Walker,AST008,Community Services,Revenue,Services,Cemetery And Crematorium,
http://statistics.data.gov.uk/search?search=E07000114,Thanet District Council,31/01/2017,424626,622.00,,Aston Walker,AST008,Community Services,Revenue,Services,Cemetery And Crematorium,
http://statistics.data.gov.uk/search?search=E07000114,Thanet District Council,31/01/2017,424096,240.00,,Astra Uk (Contracts) Ltd,AST003,Operational Services,Revenue,Cleaning & Domestic Supplies,Environmental Services,
http://statistics.data.gov.uk/search?search=E07000114,Thanet District Council,31/01/2017,424098,5918.88,,Ats Euromaster Ltd,ATS002,Operational Services,Revenue,Direct Transport Costs,Vehicle Management,
http://statistics.data.gov.uk/search?search=E07000114,Thanet District Council,31/01/2017,424647,89386.85,,Axis Europe Plc,AXI001,Corporate Resources and S151,Balance Sheet,Council Dwellings,Construction-Repair And Maint,
http://statistics.data.gov.uk/search?search=E07000114,Thanet District Council,31/01/2017,424150,458.14,,Brandon Hire Plc,BRA005,Operational Services,Revenue,"Repairs,  Alter & Mtce - Build",Maritime Services,
http://statistics.data.gov.uk/search?search=E07000114,Thanet District Council,31/01/2017,425096,13000.00,,Broadstairs & St Peters Town Council,BRO005,Community Services,Revenue,Grants & Subscriptions,Various Cats - Public Sector,
http://statistics.data.gov.uk/search?search=E07000114,Thanet District Council,31/01/2017,425097,5000.00,,Broadstairs & St Peters Town Council,BRO005,Community Services,Revenue,Grants & Subscriptions,Various Cats - Public Sector,
http://statistics.data.gov.uk/search?search=E07000114,Thanet District Council,31/01/2017,424542,2722.25,,Commercial Services Trading Ltd,COM048,Operational Services,Revenue,Cont Hire & Operating Lease,Various Cats - Public Sector,
http://statistics.data.gov.uk/search?search=E07000114,Thanet District Council,31/01/2017,424543,2722.25,,Commercial Services Trading Ltd,COM048,Operational Services,Revenue,Cont Hire & Operating Lease,Various Cats - Public Sector,
http://statistics.data.gov.uk/search?search=E07000114,Thanet District Council,31/01/2017,425094,5166.32,,Cure Developments Limited,CUR005,Corporate Resources and S151,Balance Sheet,Capital Exp-Non Council Assets,Grants,
http://statistics.data.gov.uk/search?search=E07000114,Thanet District Council,31/01/2017,424919,357.00,,Diversified Business Comms Uk Ltd,DIV001,Community Services,Revenue,Miscellaneous Expenses,Facilities And Management Serv,
http://statistics.data.gov.uk/search?search=E07000114,Thanet District Council,31/01/2017,423636,155.00,,Dover Counselling Centre,DOV014,Corporate Resources and S151,Revenue,Employee Related Schemes,Healthcare,
http://statistics.data.gov.uk/search?search=E07000114,Thanet District Council,31/01/2017,423636,205.00,,Dover Counselling Centre,DOV014,Community Services,Revenue,Employee Related Schemes,Healthcare,
http://statistics.data.gov.uk/search?search=E07000114,Thanet District Council,31/01/2017,424702,3815.25,,Dover District Council,DOV001,Operational Services,Revenue,Services,Various Cats - Public Sector,
http://statistics.data.gov.uk/search?search=E07000114,Thanet District Council,31/01/2017,424310,715.40,,F R Jones & Son,JON020,Operational Services,Revenue,"Equip, Furniture And Materials",Horticultural,
http://statistics.data.gov.uk/search?search=E07000114,Thanet District Council,31/01/2017,425033,465.68,,Family Mosaic Housing,FAM001,Corporate Resources and S151,Balance Sheet,Capital Exp-Non Council Assets,Housing Management,
http://statistics.data.gov.uk/search?search=E07000114,Thanet District Council,31/01/2017,425035,815.42,,Family Mosaic Housing,FAM001,Corporate Resources and S151,Balance Sheet,Capital Exp-Non Council Assets,Housing Management,
http://statistics.data.gov.uk/search?search=E07000114,Thanet District Council,31/01/2017,424842,604.95,,Farrer Barnes Limited,FAR012,Corporate Resources and S151,Revenue,Agency Staff,Human Resources,
http://statistics.data.gov.uk/search?search=E07000114,Thanet District Council,31/01/2017,424843,605.32,,Farrer Barnes Limited,FAR012,Corporate Resources and S151,Revenue,Agency Staff,Human Resources,
http://statistics.data.gov.uk/search?search=E07000114,Thanet District Council,31/01/2017,423390,6584.85,,Future-Tech Sci Ltd,FUT001,Corporate Governance,Revenue,"Repairs,  Alter & Mtce - Build",Facilities And Management Serv,
http://statistics.data.gov.uk/search?search=E07000114,Thanet District Council,31/01/2017,423857,1015.00,,Gerlack & Thorne Ltd,GER001,Operational Services,Revenue,"Repairs,  Alter & Mtce - Build",Construction-Repair And Maint,
http://statistics.data.gov.uk/search?search=E07000114,Thanet District Council,31/01/2017,424336,378.48,,H E Municipal Engineering Ltd,HEM003,Operational Services,Revenue,Direct Transport Costs,Vehicle Management,
http://statistics.data.gov.uk/search?search=E07000114,Thanet District Council,31/01/2017,424916,3000.00,,Hays Specialist Recruitment Ltd,HAY020,Corporate Resources and S151,Revenue,Services,Human Resources,
http://statistics.data.gov.uk/search?search=E07000114,Thanet District Council,31/01/2017,424437,473.40,,Hr Go (Kent) Ltd,HRG001,Operational Services,Revenue,Agency Staff,Human Resources,
http://statistics.data.gov.uk/search?search=E07000114,Thanet District Council,31/01/2017,424445,1091.50,,Hr Go (Kent) Ltd,HRG001,Operational Services,Revenue,Agency Staff,Human Resources,
http://statistics.data.gov.uk/search?search=E07000114,Thanet District Council,31/01/2017,424498,640.00,,Independent Reviews Ltd,IND013,Community Services,Revenue,Grants & Subscriptions,Consultancy,
http://statistics.data.gov.uk/search?search=E07000114,Thanet District Council,31/01/2017,424855,588.00,,J Rospo Building Contractors Ltd,ROS001,Operational Services,Revenue,"Repairs,  Alter & Mtce - Build",Construction-Repair And Maint,
http://statistics.data.gov.uk/search?search=E07000114,Thanet District Council,31/01/2017,424622,2000.00,,Jessica Lumley,LUM003,Community Services,Revenue,Services,Construction-Repair And Maint,
http://statistics.data.gov.uk/search?search=E07000114,Thanet District Council,31/01/2017,425037,713.50,,John Gale,GAL001,Corporate Resources and S151,Balance Sheet,Capital Exp-Non Council Assets,Grants,
http://statistics.data.gov.uk/search?search=E07000114,Thanet District Council,31/01/2017,425039,345.00,,John Gale,GAL001,Corporate Resources and S151,Balance Sheet,Capital Exp-Non Council Assets,Grants,
http://statistics.data.gov.uk/search?search=E07000114,Thanet District Council,31/01/2017,424590,2415.35,,Kent County Council,KCC002,Corporate Governance,Revenue,Rents,Various Cats - Public Sector,
http://statistics.data.gov.uk/search?search=E07000114,Thanet District Council,31/01/2017,424718,3255.00,,Kent County Council,KCC002,Community Services,Revenue,Services,Various Cats - Public Sector,
http://statistics.data.gov.uk/search?search=E07000114,Thanet District Council,31/01/2017,424829,400.00,,Km Media Group Limited,KMM001,Community Services,Revenue,Miscellaneous Expenses,Facilities And Management Serv,
http://statistics.data.gov.uk/search?search=E07000114,Thanet District Council,31/01/2017,423364,215.00,,Llg Enterprises Limited,LLG001,Community Services,Revenue,Training,Human Resources,
http://statistics.data.gov.uk/search?search=E07000114,Thanet District Council,31/01/2017,424403,797.50,,M.T.S. Cleansing Services Ltd,MTS001,Corporate Resources and S151,Balance Sheet,Other Land And Buildings-Hra,Environmental Services,
http://statistics.data.gov.uk/search?search=E07000114,Thanet District Council,31/01/2017,424094,650.00,,Maidstone Borough Council,MAI002,East Kent Shared Services,Revenue,Training,Various Cats - Public Sector,
http://statistics.data.gov.uk/search?search=E07000114,Thanet District Council,31/01/2017,424099,-18850.80,,Mears Ltd,MEA003,Corporate Resources and S151,Balance Sheet,Repairs And Mtce Holding A/C,Construction-Repair And Maint,
http://statistics.data.gov.uk/search?search=E07000114,Thanet District Council,31/01/2017,424281,27639.50,,Mears Ltd,MEA003,Corporate Resources and S151,Balance Sheet,Repairs And Mtce Holding A/C,Construction-Repair And Maint,
http://statistics.data.gov.uk/search?search=E07000114,Thanet District Council,31/01/2017,424282,8519.55,,Mears Ltd,MEA003,Corporate Resources and S151,Balance Sheet,Repairs And Mtce Holding A/C,Construction-Repair And Maint,
http://statistics.data.gov.uk/search?search=E07000114,Thanet District Council,31/01/2017,424283,2127.55,,Mears Ltd,MEA003,Corporate Resources and S151,Balance Sheet,Repairs And Mtce Holding A/C,Construction-Repair And Maint,
http://statistics.data.gov.uk/search?search=E07000114,Thanet District Council,31/01/2017,424286,294.21,,Mears Ltd,MEA003,Corporate Resources and S151,Balance Sheet,Repairs And Mtce Holding A/C,Construction-Repair And Maint,
http://statistics.data.gov.uk/search?search=E07000114,Thanet District Council,31/01/2017,424290,20017.44,,Mears Ltd,MEA003,Corporate Resources and S151,Balance Sheet,Repairs And Mtce Holding A/C,Construction-Repair And Maint,
http://statistics.data.gov.uk/search?search=E07000114,Thanet District Council,31/01/2017,424294,417.27,,Mears Ltd,MEA003,Community Services,Revenue,"Repairs,  Alter & Mtce - Build",Construction-Repair And Maint,
http://statistics.data.gov.uk/search?search=E07000114,Thanet District Council,31/01/2017,424294,2037.26,,Mears Ltd,MEA003,Corporate Governance,Revenue,"Repairs,  Alter & Mtce - Build",Construction-Repair And Maint,
http://statistics.data.gov.uk/search?search=E07000114,Thanet District Council,31/01/2017,424294,69.60,,Mears Ltd,MEA003,Operational Services,Revenue,"Repairs,  Alter & Mtce - Build",Construction-Repair And Maint,
http://statistics.data.gov.uk/search?search=E07000114,Thanet District Council,31/01/2017,424306,51989.61,,Mears Ltd,MEA003,Corporate Resources and S151,Balance Sheet,Repairs And Mtce Holding A/C,Construction-Repair And Maint,
http://statistics.data.gov.uk/search?search=E07000114,Thanet District Council,31/01/2017,424409,1117.01,,Mears Ltd,MEA003,Corporate Governance,Revenue,"Repairs,  Alter & Mtce - Build",Construction-Repair And Maint,
http://statistics.data.gov.uk/search?search=E07000114,Thanet District Council,31/01/2017,424488,379.28,,Mears Ltd,MEA003,Corporate Governance,Revenue,"Repairs,  Alter & Mtce - Build",Construction-Repair And Maint,
http://statistics.data.gov.uk/search?search=E07000114,Thanet District Council,31/01/2017,424489,419.19,,Mears Ltd,MEA003,Corporate Governance,Revenue,"Repairs,  Alter & Mtce - Build",Construction-Repair And Maint,
http://statistics.data.gov.uk/search?search=E07000114,Thanet District Council,31/01/2017,424489,908.84,,Mears Ltd,MEA003,Operational Services,Revenue,"Repairs,  Alter & Mtce - Build",Construction-Repair And Maint,
http://statistics.data.gov.uk/search?search=E07000114,Thanet District Council,31/01/2017,424604,920.00,,Med Clean South Ltd,MED015,Operational Services,Revenue,"Repairs,  Alter & Mtce - Build",Cleaning And Janitorial,
http://statistics.data.gov.uk/search?search=E07000114,Thanet District Council,31/01/2017,424606,1524.75,,Med Clean South Ltd,MED015,Operational Services,Revenue,"Repairs,  Alter & Mtce - Build",Cleaning And Janitorial,
http://statistics.data.gov.uk/search?search=E07000114,Thanet District Council,31/01/2017,423413,553.52,,Morgan Jones Ltd,MOR001,Corporate Governance,Revenue,Agency Staff,Human Resources,
http://statistics.data.gov.uk/search?search=E07000114,Thanet District Council,31/01/2017,423251,625.00,,Northgate Public Services (Uk) Ltd,NOR018,Community Services,Revenue,Communications & Computing,ICT,
http://statistics.data.gov.uk/search?search=E07000114,Thanet District Council,31/01/2017,425036,7135.00,,Northwood Builders,NOR002,Corporate Resources and S151,Balance Sheet,Capital Exp-Non Council Assets,Grants,
http://statistics.data.gov.uk/search?search=E07000114,Thanet District Council,31/01/2017,424680,3000.00,,Oasis Domestic Abuse Service Ltd,OAS003,Community Services,Revenue,Grants & Subscriptions,Non Trade Payee,
http://statistics.data.gov.uk/search?search=E07000114,Thanet District Council,31/01/2017,423124,1350.00,,Office Reality Limited,OFF009,Corporate Governance,Revenue,Fixtures & Fittings,Furniture And Soft Furnishings,
http://statistics.data.gov.uk/search?search=E07000114,Thanet District Council,31/01/2017,424556,4375.24,,Orbis Protect Limited,ORB009,Corporate Governance,Revenue,"Repairs,  Alter & Mtce - Build",Facilities And Management Serv,
http://statistics.data.gov.uk/search?search=E07000114,Thanet District Council,31/01/2017,423891,2250.00,,Paul Shadarevian,SHA031,Corporate Resources and S151,Balance Sheet,Other Land And Buildings-Hra,Human Resources,
http://statistics.data.gov.uk/search?search=E07000114,Thanet District Council,31/01/2017,424857,315.00,,R Cannon,CAN007,Operational Services,Revenue,Services,Maritime Services,
http://statistics.data.gov.uk/search?search=E07000114,Thanet District Council,31/01/2017,424405,4190.00,,R J Broadley Tree Surgery,RJB002,Operational Services,Revenue,Grounds Mtce Costs,Horticultural,
http://statistics.data.gov.uk/search?search=E07000114,Thanet District Council,31/01/2017,425092,1035.89,,REDACTED PERSONAL DATA,N/A,Corporate Resources and S151,Balance Sheet,Capital Exp-Non Council Assets,Non Trade Payee,
http://statistics.data.gov.uk/search?search=E07000114,Thanet District Council,31/01/2017,423546,513.66,,Securitas Security Services (Uk) Ltd,SEC019,Corporate Governance,Revenue,Services,Facilities And Management Serv,
http://statistics.data.gov.uk/search?search=E07000114,Thanet District Council,31/01/2017,423247,260.00,,Sicuro Uk Ltd,SIC001,Community Services,Revenue,Services,Facilities And Management Serv,
http://statistics.data.gov.uk/search?search=E07000114,Thanet District Council,31/01/2017,423853,9900.00,,Sophie Jeffrey,JEF003,Community Services,Revenue,Services,Consultancy,
http://statistics.data.gov.uk/search?search=E07000114,Thanet District Council,31/01/2017,425034,6795.21,,South East Building Company Limited,SEB001,Corporate Resources and S151,Balance Sheet,Capital Exp-Non Council Assets,Grants,
http://statistics.data.gov.uk/search?search=E07000114,Thanet District Council,31/01/2017,424833,490.00,,Southeast Retail Ltd,SOU030,Community Services,Revenue,Services,Housing Management,
http://statistics.data.gov.uk/search?search=E07000114,Thanet District Council,31/01/2017,424695,-753.23,,Southern Electric,SEL007,Operational Services,Revenue,Energy Costs,Utilities,
http://statistics.data.gov.uk/search?search=E07000114,Thanet District Council,31/01/2017,424706,284.16,,Southern Electric,SEL007,Operational Services,Revenue,Energy Costs,Utilities,
http://statistics.data.gov.uk/search?search=E07000114,Thanet District Council,31/01/2017,424707,731.53,,Southern Electric,SEL007,Operational Services,Revenue,Energy Costs,Utilities,
http://statistics.data.gov.uk/search?search=E07000114,Thanet District Council,31/01/2017,424316,1236.60,,Spaldings  Ltd,SPA006,Operational Services,Revenue,"Equip, Furniture And Materials",Horticultural,
http://statistics.data.gov.uk/search?search=E07000114,Thanet District Council,31/01/2017,424676,209.86,,Spaldings  Ltd,SPA006,Operational Services,Revenue,"Equip, Furniture And Materials",Horticultural,
http://statistics.data.gov.uk/search?search=E07000114,Thanet District Council,31/01/2017,423526,2377.44,,Speedy Asset Services Limited,SPE018,Community Services,Revenue,Services,Building Construction Material,
http://statistics.data.gov.uk/search?search=E07000114,Thanet District Council,31/01/2017,424483,-292.10,,Speedy Asset Services Limited,SPE018,Community Services,Revenue,Services,Building Construction Material,
http://statistics.data.gov.uk/search?search=E07000114,Thanet District Council,31/01/2017,424484,243.60,,Speedy Asset Services Limited,SPE018,Community Services,Revenue,Services,Building Construction Material,
http://statistics.data.gov.uk/search?search=E07000114,Thanet District Council,31/01/2017,424643,33336.05,,Standage & Co Limited,STA058,Corporate Resources and S151,Balance Sheet,Council Dwellings,Construction-Repair And Maint,
http://statistics.data.gov.uk/search?search=E07000114,Thanet District Council,31/01/2017,424644,56699.73,,Standage & Co Limited,STA058,Corporate Resources and S151,Balance Sheet,Council Dwellings,Construction-Repair And Maint,
http://statistics.data.gov.uk/search?search=E07000114,Thanet District Council,31/01/2017,424692,1950.00,,Statutory Nuisance Solutions,STA062,Community Services,Revenue,Training,Human Resources,
http://statistics.data.gov.uk/search?search=E07000114,Thanet District Council,31/01/2017,424575,561.00,,Thanet Waste Services Ltd,TWA001,Operational Services,Revenue,Private Contractors,Environmental Services,
http://statistics.data.gov.uk/search?search=E07000114,Thanet District Council,31/01/2017,425038,3450.00,,Trueden Disability Adaptations Ltd,TRU012,Corporate Resources and S151,Balance Sheet,Capital Exp-Non Council Assets,Grants,
http://statistics.data.gov.uk/search?search=E07000114,Thanet District Council,31/01/2017,418419,10000.00,,Tunbridge Wells Borough Council,TUN002,Chief Executive,Revenue,Grants & Subscriptions,Various Cats - Public Sector,
http://statistics.data.gov.uk/search?search=E07000114,Thanet District Council,31/01/2017,424404,788.40,,Viatec (Uk) Limited,VIA002,Operational Services,Revenue,"Equip, Furniture And Materials",Construction-Repair And Maint,
http://statistics.data.gov.uk/search?search=E07000114,Thanet District Council,31/01/2017,424852,788.40,,Viatec (Uk) Limited,VIA002,Operational Services,Revenue,"Equip, Furniture And Materials",Construction-Repair And Maint,
http://statistics.data.gov.uk/search?search=E07000114,Thanet District Council,31/01/2017,424562,1340.00,,W Brazil & Bros,BRA001,Operational Services,Revenue,Grounds Mtce Costs,Environmental Services,
http://statistics.data.gov.uk/search?search=E07000114,Thanet District Council,31/01/2017,424563,250.00,,W Brazil & Bros,BRA001,Corporate Resources and S151,Balance Sheet,Repairs And Mtce Holding A/C,Environmental Services,
http://statistics.data.gov.uk/search?search=E07000114,Thanet District Council,31/01/2017,424565,590.00,,W Brazil & Bros,BRA001,Corporate Resources and S151,Balance Sheet,Repairs And Mtce Holding A/C,Environmental Services,
http://statistics.data.gov.uk/search?search=E07000114,Thanet District Council,31/01/2017,424572,350.00,,W Brazil & Bros,BRA001,Corporate Resources and S151,Balance Sheet,Repairs And Mtce Holding A/C,Environmental Services,
http://statistics.data.gov.uk/search?search=E07000114,Thanet District Council,31/01/2017,424816,1096.40,,Walker Construction (Uk) Ltd,WAL001,Operational Services,Revenue,Training,Construction-Repair And Maint,
http://statistics.data.gov.uk/search?search=E07000114,Thanet District Council,31/01/2017,424148,44208.40,,Westbrook Construction (Margate) Ltd,WES021,Corporate Resources and S151,Balance Sheet,Other Land And Buildings-Hra,Various Categories,
